Body Name,Body,Service Division Label,Service Division Code,Organisational Unit,Expenditure Category,Expenditure Code,CIPFA detailed expediture type,CIPFA detailed expediture code,Narrative,Date,Transaction number,Net Amount,Capital and Revenue,Supplier Name,Supplier ID,,
Chorley Borough Council,http://statistics.data.gov.uk/id/local-authority/30UE,Central Support Services,1009,Early Intervention,Core Funding Grants,40133,Grants and Subscriptions,5031,Small community grant funding,15/01/2021,0152227,250.00,Revenue,1st Wheelton Brownies,69259,,
Chorley Borough Council,http://statistics.data.gov.uk/id/local-authority/30UE,Central Support Services,1009,Customer & Digital,Telephones - Other,40085,Communication and Computing,5028,Adept Telecom - December 2020,22/01/2021,0152412,"1,609.64",Revenue,Adept Telecom PLC,77452,,
Chorley Borough Council,http://statistics.data.gov.uk/id/local-authority/30UE,Central Support Services,1009,Customer & Digital,Telephones - Other,40085,Communication and Computing,5028,Adept Telecom - January 2021,22/01/2021,0152444,"1,609.64",Revenue,Adept Telecom PLC,77452,,
Chorley Borough Council,http://statistics.data.gov.uk/id/local-authority/30UE,Capital,Capital,Commercial Services,Main Contractor,03007,Capital Expenditure,Capital,Principal Designer - Astley Hall Refurbishment,20/01/2021,0152457,"1,968.00",Capital,Aegis Services Ltd,80556,,
Chorley Borough Council,http://statistics.data.gov.uk/id/local-authority/30UE,Community Development,1097,Policy & Governance,Core Funding Grants,40133,Grants and Subscriptions,5031,Annual commission for the provision of a support service for older people in Chorley from 1 May 2020 to 31 March 2021,22/01/2021,0152403,"5,000.00",Revenue,Age UK,21252,,
Chorley Borough Council,http://statistics.data.gov.uk/id/local-authority/30UE,Unapportionable Central OHeads,1009,Customer & Digital,Bank Charges,40151,Miscellaneous Expenses,5034,card transactions,06/01/2021,0151313,834.22,Revenue,Allpay Net Ltd,17242,,
Chorley Borough Council,http://statistics.data.gov.uk/id/local-authority/30UE,Central Support Services,1009,Customer & Digital,Bank Charges,40151,Miscellaneous Expenses,5034,Allpay,13/01/2021,0152143,847.73,Revenue,Allpay Net Ltd,17242,,
Chorley Borough Council,http://statistics.data.gov.uk/id/local-authority/30UE,Central Support Services,1009,Early Intervention,Tools & Equipment - Purchase,40003,"Equipment, Furniture & Materia",5023,Pest control treatment at properties previously identified at ADDRESSES REDACTED,13/01/2021,0151161,384.00,Revenue,ALPHA PEST CONTROL LIMITED,18208,,
Chorley Borough Council,http://statistics.data.gov.uk/id/local-authority/30UE,Central Support Services,1009,Early Intervention,External Contractor,40198,Miscellaneous Expenses,5034,External Contractor -  Pest Control Service,13/01/2021,0151526,"3,164.04",Revenue,ALPHA PEST CONTROL LIMITED,18208,,
Chorley Borough Council,http://statistics.data.gov.uk/id/local-authority/30UE,Central Support Services,1009,Early Intervention,External Contractor,40198,Miscellaneous Expenses,5034,External Contractor -  Pest Control Service,13/01/2021,0151602,777.21,Revenue,ALPHA PEST CONTROL LIMITED,18208,,
Chorley Borough Council,http://statistics.data.gov.uk/id/local-authority/30UE,Central Support Services,1009,Early Intervention,External Contractor,40198,Miscellaneous Expenses,5034,External Contractor -  Pest Control Service,13/01/2021,0152108,484.34,Revenue,ALPHA PEST CONTROL LIMITED,18208,,
Chorley Borough Council,http://statistics.data.gov.uk/id/local-authority/30UE,Central Support Services,1009,Early Intervention,External Contractor,40198,Miscellaneous Expenses,5034,External Contractor -  Pest Control Service,13/01/2021,0152198,"1,953.42",Revenue,ALPHA PEST CONTROL LIMITED,18208,,
Chorley Borough Council,http://statistics.data.gov.uk/id/local-authority/30UE,Corporate Management,1008,Policy & Governance,Car Leasing Payment,14100,Direct Employee Expenses,5001,VIN REDACTED: NAME REDACTED,13/01/2021,0152113,355.50,Revenue,Alphabet (Uk) Fleet Management Ltd,16651,,
Chorley Borough Council,http://statistics.data.gov.uk/id/local-authority/30UE,Corporate Management,1008,Policy & Governance,Car Leasing Payment,14100,Direct Employee Expenses,5001,VAT,13/01/2021,0152113,31.50,Revenue,Alphabet (Uk) Fleet Management Ltd,16651,,
Chorley Borough Council,http://statistics.data.gov.uk/id/local-authority/30UE,Control Accounts,Control,Policy & Governance,Manual Control Account,00001,Balance Sheet,Balance,- VAT,13/01/2021,0152113,-31.50,Revenue,Alphabet (Uk) Fleet Management Ltd,16651,,
Chorley Borough Council,http://statistics.data.gov.uk/id/local-authority/30UE,Development Control,1091,Policy & Governance,Car Leasing Payment,14100,Direct Employee Expenses,5001,VIN REDACTED: NAME REDACTED,13/01/2021,0152113,242.70,Revenue,Alphabet (Uk) Fleet Management Ltd,16651,,
Chorley Borough Council,http://statistics.data.gov.uk/id/local-authority/30UE,Development Control,1091,Policy & Governance,Car Leasing Payment,14100,Direct Employee Expenses,5001,VAT,13/01/2021,0152113,20.65,Revenue,Alphabet (Uk) Fleet Management Ltd,16651,,
Chorley Borough Council,http://statistics.data.gov.uk/id/local-authority/30UE,Control Accounts,Control,Policy & Governance,Manual Control Account,00001,Balance Sheet,Balance,- VAT,13/01/2021,0152113,-20.65,Revenue,Alphabet (Uk) Fleet Management Ltd,16651,,
Chorley Borough Council,http://statistics.data.gov.uk/id/local-authority/30UE,Corporate Management,1008,Policy & Governance,Car Leasing Payment,14100,Direct Employee Expenses,5001,VIN REDACTED - NAME REDACTED,27/01/2021,0152726,367.35,Revenue,Alphabet (Uk) Fleet Management Ltd,16651,,
Chorley Borough Council,http://statistics.data.gov.uk/id/local-authority/30UE,Corporate Management,1008,Policy & Governance,Car Leasing Payment,14100,Direct Employee Expenses,5001,VAT,27/01/2021,0152726,32.55,Revenue,Alphabet (Uk) Fleet Management Ltd,16651,,
Chorley Borough Council,http://statistics.data.gov.uk/id/local-authority/30UE,Control Accounts,Control,Policy & Governance,Manual Control Account,00001,Balance Sheet,Balance,- VAT,27/01/2021,0152726,-32.55,Revenue,Alphabet (Uk) Fleet Management Ltd,16651,,
Chorley Borough Council,http://statistics.data.gov.uk/id/local-authority/30UE,Development Control,1091,Policy & Governance,Car Leasing Payment,14100,Direct Employee Expenses,5001,VIN REDACTED - NAME REDACTED,27/01/2021,0152726,250.79,Revenue,Alphabet (Uk) Fleet Management Ltd,16651,,
Chorley Borough Council,http://statistics.data.gov.uk/id/local-authority/30UE,Development Control,1091,Policy & Governance,Car Leasing Payment,14100,Direct Employee Expenses,5001,VAT,27/01/2021,0152726,21.23,Revenue,Alphabet (Uk) Fleet Management Ltd,16651,,
Chorley Borough Council,http://statistics.data.gov.uk/id/local-authority/30UE,Control Accounts,Control,Policy & Governance,Manual Control Account,00001,Balance Sheet,Balance,- VAT,27/01/2021,0152726,-21.23,Revenue,Alphabet (Uk) Fleet Management Ltd,16651,,
Chorley Borough Council,http://statistics.data.gov.uk/id/local-authority/30UE,Central Support Services,1009,Policy & Governance,Car Leasing Payment,14100,Direct Employee Expenses,5001,"NAME REDACTED Hyundai Tucson - 1.6 CRDi 48V MHD SE Nav 5dr 2WD Stellar Blue 3 Years 12,000 miles P/A Estate Manual",27/01/2021,0152734,"3,500.71",Revenue,Alphabet (Uk) Fleet Management Ltd,16651,,
Chorley Borough Council,http://statistics.data.gov.uk/id/local-authority/30UE,Corporate Management,1008,Policy & Governance,Car Leasing Payment,14100,Direct Employee Expenses,5001,VAT,27/01/2021,0152734,316.30,Revenue,Alphabet (Uk) Fleet Management Ltd,16651,,
Chorley Borough Council,http://statistics.data.gov.uk/id/local-authority/30UE,Control Accounts,Control,Policy & Governance,Manual Control Account,00001,Balance Sheet,Balance,- VAT,27/01/2021,0152734,-316.30,Revenue,Alphabet (Uk) Fleet Management Ltd,16651,,
Chorley Borough Council,http://statistics.data.gov.uk/id/local-authority/30UE,Unapportionable Central OHeads,1009,Commercial Services,Burglar Alarms & Security Systems,20075,Fixtures and Fittings,5010,"Reactive blanket - intruder, access and all non fire related systems",20/01/2021,0152455,254.00,Revenue,Amalgamated Ltd,78289,,
Chorley Borough Council,http://statistics.data.gov.uk/id/local-authority/30UE,Central Support Services,1009,Customer & Digital,Computer Software-Additional,40102,Communication and Computing,5028,Amazon AWS web services - 718576685325 Cloud charges November 2020,13/01/2021,0152079,"2,032.16",Revenue,Amazon Web Services EMEA SARL,80604,,
Chorley Borough Council,http://statistics.data.gov.uk/id/local-authority/30UE,Unapportionable Central OHeads,1009,Policy & Governance,Refreshments,40036,Catering,5024,"Sanitisation, provision of water and hire of machines for all Council sites",22/01/2021,0152564,354.86,Revenue,Angel Springs Ltd T/A Waterlogic UK,77689,,
Chorley Borough Council,http://statistics.data.gov.uk/id/local-authority/30UE,Central Support Services,1009,Early Intervention,Impounded Dogs Costs,40207,Miscellaneous Expenses,5034,Provision of collection & kennelling of stray dogs Nov 20 Provision of overnight accommodation retainer,06/01/2021,0151622,508.80,Revenue,Animal Wardens Ltd,80965,,
Chorley Borough Council,http://statistics.data.gov.uk/id/local-authority/30UE,Central Support Services,1009,Early Intervention,Impounded Dogs Costs,40207,Miscellaneous Expenses,5034,Stray Dogs Overnight Accommodation Retainer,20/01/2021,0152059,320.00,Revenue,Animal Wardens Ltd,80965,,
Chorley Borough Council,http://statistics.data.gov.uk/id/local-authority/30UE,Corporate Management,1008,Chief Executive,Employee Related Insurance,18003,Indirect Employee Expenses,5002,"Additional Premium in relation the Liability policy for the inclusion of the Leisure Centres.  Sub total -  3,340.00 IPT -  400.80",29/01/2021,0152715,"3,740.80",Revenue,Aon UK Limited Accounts Division,76559,,
Chorley Borough Council,http://statistics.data.gov.uk/id/local-authority/30UE,Democratic Represent and  Mgnt,1007,Policy & Governance,Car Leasing Payment,14100,Direct Employee Expenses,5001,VIN REDACTED: NAME REDACTED,13/01/2021,0148347,251.97,Revenue,Arnold Clark Finance Ltd,20685,,
Chorley Borough Council,http://statistics.data.gov.uk/id/local-authority/30UE,Culture & Heritage,1036,Policy & Governance,Car Leasing Payment,14100,Direct Employee Expenses,5001,VAT,13/01/2021,0148347,22.13,Revenue,Arnold Clark Finance Ltd,20685,,
Chorley Borough Council,http://statistics.data.gov.uk/id/local-authority/30UE,Control Accounts,Control,Policy & Governance,Manual Control Account,00001,Balance Sheet,Balance,- VAT,13/01/2021,0148347,-22.13,Revenue,Arnold Clark Finance Ltd,20685,,
Chorley Borough Council,http://statistics.data.gov.uk/id/local-authority/30UE,Development Control,1091,Policy & Governance,Car Leasing Payment,14100,Direct Employee Expenses,5001,VIN REDACTED: NAME REDACTED,13/01/2021,0148347,592.00,Revenue,Arnold Clark Finance Ltd,20685,,
Chorley Borough Council,http://statistics.data.gov.uk/id/local-authority/30UE,Development Control,1091,Policy & Governance,Car Leasing Payment,14100,Direct Employee Expenses,5001,VAT,13/01/2021,0148347,50.27,Revenue,Arnold Clark Finance Ltd,20685,,
Chorley Borough Council,http://statistics.data.gov.uk/id/local-authority/30UE,Control Accounts,Control,Policy & Governance,Manual Control Account,00001,Balance Sheet,Balance,- VAT,13/01/2021,0148347,-50.27,Revenue,Arnold Clark Finance Ltd,20685,,
Chorley Borough Council,http://statistics.data.gov.uk/id/local-authority/30UE,Central Support Services,1009,Policy & Governance,Car Leasing Payment,14100,Direct Employee Expenses,5001,VIN REDACTED,13/01/2021,0148479,"2,768.28",Revenue,Arnold Clark Finance Ltd,20685,,
Chorley Borough Council,http://statistics.data.gov.uk/id/local-authority/30UE,Unapportionable Central OHeads,1009,Policy & Governance,Car Leasing Payment,14100,Direct Employee Expenses,5001,vat,13/01/2021,0148479,227.13,Revenue,Arnold Clark Finance Ltd,20685,,
Chorley Borough Council,http://statistics.data.gov.uk/id/local-authority/30UE,Control Accounts,Control,Policy & Governance,Manual Control Account,00001,Balance Sheet,Balance,-vat,13/01/2021,0148479,-227.13,Revenue,Arnold Clark Finance Ltd,20685,,
Chorley Borough Council,http://statistics.data.gov.uk/id/local-authority/30UE,Central Support Services,1009,Policy & Governance,Car Leasing Payment,14100,Direct Employee Expenses,5001,VIN REDACTED NAME REDACTED,13/01/2021,0152115,298.11,Revenue,Arnold Clark Finance Ltd,20685,,
Chorley Borough Council,http://statistics.data.gov.uk/id/local-authority/30UE,Central Support Services,1009,Policy & Governance,Car Leasing Payment,14100,Direct Employee Expenses,5001,VAT,13/01/2021,0152115,26.14,Revenue,Arnold Clark Finance Ltd,20685,,
Chorley Borough Council,http://statistics.data.gov.uk/id/local-authority/30UE,Control Accounts,Control,Policy & Governance,Manual Control Account,00001,Balance Sheet,Balance,- VAT,13/01/2021,0152115,-26.14,Revenue,Arnold Clark Finance Ltd,20685,,
Chorley Borough Council,http://statistics.data.gov.uk/id/local-authority/30UE,Homelessness,1075,Policy & Governance,Car Leasing Payment,14100,Direct Employee Expenses,5001,VIN REDACTED NAME REDACTED,13/01/2021,0152115,460.93,Revenue,Arnold Clark Finance Ltd,20685,,
Chorley Borough Council,http://statistics.data.gov.uk/id/local-authority/30UE,Homelessness,1075,Policy & Governance,Car Leasing Payment,14100,Direct Employee Expenses,5001,VAT,13/01/2021,0152115,39.00,Revenue,Arnold Clark Finance Ltd,20685,,
Chorley Borough Council,http://statistics.data.gov.uk/id/local-authority/30UE,Control Accounts,Control,Policy & Governance,Manual Control Account,00001,Balance Sheet,Balance,- VAT,13/01/2021,0152115,-39.00,Revenue,Arnold Clark Finance Ltd,20685,,
Chorley Borough Council,http://statistics.data.gov.uk/id/local-authority/30UE,Homelessness,1075,Policy & Governance,Car Leasing Payment,14100,Direct Employee Expenses,5001,VIN REDACTED NAME REDACTED,20/01/2021,0152116,152.51,Revenue,Arnold Clark Finance Ltd,20685,,
Chorley Borough Council,http://statistics.data.gov.uk/id/local-authority/30UE,Homelessness,1075,Policy & Governance,Car Leasing Payment,14100,Direct Employee Expenses,5001,VAT,20/01/2021,0152116,12.90,Revenue,Arnold Clark Finance Ltd,20685,,
Chorley Borough Council,http://statistics.data.gov.uk/id/local-authority/30UE,Control Accounts,Control,Policy & Governance,Manual Control Account,00001,Balance Sheet,Balance,- VAT,20/01/2021,0152116,-12.90,Revenue,Arnold Clark Finance Ltd,20685,,
Chorley Borough Council,http://statistics.data.gov.uk/id/local-authority/30UE,Homelessness,1075,Policy & Governance,Car Leasing Payment,14100,Direct Employee Expenses,5001,VIN REDACTED NAME REDACTED,20/01/2021,0152116,196.30,Revenue,Arnold Clark Finance Ltd,20685,,
Chorley Borough Council,http://statistics.data.gov.uk/id/local-authority/30UE,Homelessness,1075,Policy & Governance,Car Leasing Payment,14100,Direct Employee Expenses,5001,VAT,20/01/2021,0152116,16.61,Revenue,Arnold Clark Finance Ltd,20685,,
Chorley Borough Council,http://statistics.data.gov.uk/id/local-authority/30UE,Control Accounts,Control,Policy & Governance,Manual Control Account,00001,Balance Sheet,Balance,- VAT,20/01/2021,0152116,-16.61,Revenue,Arnold Clark Finance Ltd,20685,,
Chorley Borough Council,http://statistics.data.gov.uk/id/local-authority/30UE,Central Support Services,1009,Policy & Governance,Car Leasing Payment,14100,Direct Employee Expenses,5001,VIN REDACTED NAME REDACTED,20/01/2021,0152117,298.11,Revenue,Arnold Clark Finance Ltd,20685,,
Chorley Borough Council,http://statistics.data.gov.uk/id/local-authority/30UE,Central Support Services,1009,Policy & Governance,Car Leasing Payment,14100,Direct Employee Expenses,5001,VAT,20/01/2021,0152117,26.14,Revenue,Arnold Clark Finance Ltd,20685,,
Chorley Borough Council,http://statistics.data.gov.uk/id/local-authority/30UE,Control Accounts,Control,Policy & Governance,Manual Control Account,00001,Balance Sheet,Balance,- VAT,20/01/2021,0152117,-26.14,Revenue,Arnold Clark Finance Ltd,20685,,
Chorley Borough Council,http://statistics.data.gov.uk/id/local-authority/30UE,Corporate Management,1008,Policy & Governance,Car Leasing Payment,14100,Direct Employee Expenses,5001,VIN REDACTED NAME REDACTED,27/01/2021,0152727,"2,553.36",Revenue,Arnold Clark Finance Ltd,20685,,
Chorley Borough Council,http://statistics.data.gov.uk/id/local-authority/30UE,Corporate Management,1008,Policy & Governance,Car Leasing Payment,14100,Direct Employee Expenses,5001,VAT,27/01/2021,0152727,231.27,Revenue,Arnold Clark Finance Ltd,20685,,
Chorley Borough Council,http://statistics.data.gov.uk/id/local-authority/30UE,Control Accounts,Control,Policy & Governance,Manual Control Account,00001,Balance Sheet,Balance,- VAT,27/01/2021,0152727,-231.27,Revenue,Arnold Clark Finance Ltd,20685,,
Chorley Borough Council,http://statistics.data.gov.uk/id/local-authority/30UE,Central Support Services,1009,Policy & Governance,Car Leasing Payment,14100,Direct Employee Expenses,5001,VIN REDACTED NAME REDACTED,27/01/2021,0152728,"2,143.68",Revenue,Arnold Clark Finance Ltd,20685,,
Chorley Borough Council,http://statistics.data.gov.uk/id/local-authority/30UE,Unapportionable Central OHeads,1009,Policy & Governance,Car Leasing Payment,14100,Direct Employee Expenses,5001,VAT,27/01/2021,0152728,186.07,Revenue,Arnold Clark Finance Ltd,20685,,
Chorley Borough Council,http://statistics.data.gov.uk/id/local-authority/30UE,Control Accounts,Control,Policy & Governance,Manual Control Account,00001,Balance Sheet,Balance,- VAT,27/01/2021,0152728,-186.07,Revenue,Arnold Clark Finance Ltd,20685,,
Chorley Borough Council,http://statistics.data.gov.uk/id/local-authority/30UE,Central Support Services,1009,Policy & Governance,Car Leasing Payment,14100,Direct Employee Expenses,5001,VIN REDACTED NAME REDACTED,27/01/2021,0152729,"2,405.04",Revenue,Arnold Clark Finance Ltd,20685,,
Chorley Borough Council,http://statistics.data.gov.uk/id/local-authority/30UE,Central Support Services,1009,Policy & Governance,Car Leasing Payment,14100,Direct Employee Expenses,5001,VAT,27/01/2021,0152729,209.50,Revenue,Arnold Clark Finance Ltd,20685,,
Chorley Borough Council,http://statistics.data.gov.uk/id/local-authority/30UE,Control Accounts,Control,Policy & Governance,Manual Control Account,00001,Balance Sheet,Balance,- VAT,27/01/2021,0152729,-209.50,Revenue,Arnold Clark Finance Ltd,20685,,
Chorley Borough Council,http://statistics.data.gov.uk/id/local-authority/30UE,Service Management & Support,1009,Customer & Digital,Vehicles and Plant Maintenance,30045,Direct Transport Costs,5016,FL66 OUZ Full service MOT Rear brake discs and pads Bulb,13/01/2021,0151045,313.50,Revenue,Autofit,78140,,
Chorley Borough Council,http://statistics.data.gov.uk/id/local-authority/30UE,Service Management & Support,1009,Customer & Digital,Vehicles and Plant Maintenance,30045,Direct Transport Costs,5016,FL66 OUZ,13/01/2021,0151045,49.50,Revenue,Autofit,78140,,
Chorley Borough Council,http://statistics.data.gov.uk/id/local-authority/30UE,Service Management & Support,1009,Customer & Digital,Vehicles and Plant Maintenance,30045,Direct Transport Costs,5016,NJ10 OTW MOT Service Fuel filter New tyre Front and rear brake discs and pads O/S/R Brake Caliper,27/01/2021,0151047,714.45,Revenue,Autofit,78140,,
Chorley Borough Council,http://statistics.data.gov.uk/id/local-authority/30UE,Service Management & Support,1009,Customer & Digital,Vehicles and Plant Maintenance,30045,Direct Transport Costs,5016,MOT TEST,27/01/2021,0151047,49.50,Revenue,Autofit,78140,,
Chorley Borough Council,http://statistics.data.gov.uk/id/local-authority/30UE,Service Management & Support,1009,Customer & Digital,Vehicles and Plant Maintenance,30045,Direct Transport Costs,5016,FH15 MZU MOT Test Front brake pads Rear brake pads DPF Clean Offside rear inner D Bush Offside Track rod end Nearside ,13/01/2021,0151048,473.55,Revenue,Autofit,78140,,
Chorley Borough Council,http://statistics.data.gov.uk/id/local-authority/30UE,Service Management & Support,1009,Customer & Digital,Vehicles and Plant Maintenance,30045,Direct Transport Costs,5016,MOT FH15 MZU,13/01/2021,0151048,54.45,Revenue,Autofit,78140,,
Chorley Borough Council,http://statistics.data.gov.uk/id/local-authority/30UE,Service Management & Support,1009,Early Intervention,Vehicles and Plant Maintenance,30045,Direct Transport Costs,5016,FL66 PDK MOT FUll Service Tyre New Brake servo fitted,15/01/2021,0151162,661.98,Revenue,Autofit,78140,,
Chorley Borough Council,http://statistics.data.gov.uk/id/local-authority/30UE,Service Management & Support,1009,Early Intervention,Vehicles and Plant Maintenance,30045,Direct Transport Costs,5016,MOT,15/01/2021,0151162,49.50,Revenue,Autofit,78140,,
Chorley Borough Council,http://statistics.data.gov.uk/id/local-authority/30UE,Service Management & Support,1009,Customer & Digital,Hire Of Vehicles and Plant,30028,Contrct Hire & Operating Lease,5018,2 x John Deere 1580 with front mounted rotary cutting decks @ 24071.84 each 1 x Wessex gang mower @ 32860,27/01/2021,0152321,"1,242.40",Revenue,Balmers Garden Machinery,17075,,
Chorley Borough Council,http://statistics.data.gov.uk/id/local-authority/30UE,Central Support Services,1009,Chief Executive,Legal Fees,40171,Miscellaneous Expenses,5034,Professional charges for the period 24 September 2020 - 22 October 2020 (Alker),06/01/2021,0151913,"1,337.65",Revenue,Bevan Brittan LLP Solicitors,69456,,
Chorley Borough Council,http://statistics.data.gov.uk/id/local-authority/30UE,Central Support Services,1009,Chief Executive,Legal Fees,40171,Miscellaneous Expenses,5034,Professional charges for the period 24 September 2020 - 22 October 2020 (Tatton),06/01/2021,0151913,650.65,Revenue,Bevan Brittan LLP Solicitors,69456,,
Chorley Borough Council,http://statistics.data.gov.uk/id/local-authority/30UE,Economic Development,1096,Commercial Services,Professional Fees,40063,Services,5027,"Covered market improvement works. Please carry out the Replacement Fascias, Soffits and Rainwater Goods 23,433.00",08/01/2021,0151924,"24,500.00",Revenue,Blackpool Industrial Roofing Limited,80997,,
Chorley Borough Council,http://statistics.data.gov.uk/id/local-authority/30UE,Capital,Capital,Commercial Services,Main Contractor,03007,Capital Expenditure,Capital,Bengal St security barriers as agreed with NAMES REDACTED,20/01/2021,0152484,"11,747.00",Capital,Boundary Gate and Barrier Contracts Ltd,78225,,
Chorley Borough Council,http://statistics.data.gov.uk/id/local-authority/30UE,Central Support Services,1009,Early Intervention,Core Funding Grants,40133,Grants and Subscriptions,5031,Small community grant funding,15/01/2021,0152229,375.00,Revenue,Brindle St.James Church,80973,,
Chorley Borough Council,http://statistics.data.gov.uk/id/local-authority/30UE,Business Support,1095,Commercial Services,Planned Maintenance,20006,Repairs Maintenance & Alts,5005,Strwberry fields work carried out as requested. Digging holes and erecting fence posts,20/01/2021,0152413,788.00,Revenue,Bryan Lee Building Contractors Ltd,78160,,
Chorley Borough Council,http://statistics.data.gov.uk/id/local-authority/30UE,Central Support Services,1009,Customer & Digital,Telephones - Rentals,40083,Communication and Computing,5028,31/1/21 to 30/1/22,20/01/2021,0152341,"2,126.88",Revenue,BT Redcare,21115,,
Chorley Borough Council,http://statistics.data.gov.uk/id/local-authority/30UE,Homelessness,1075,Early Intervention,External Contractor,40198,Miscellaneous Expenses,5034,Provision of Accommodation Finding Service (24 hours) & Resettlement Service (6 hours) from 1st Oct 2020 to 31st Dec 2020,15/01/2021,0152149,"7,286.50",Revenue,Calico Enterprise,73338,,
Chorley Borough Council,http://statistics.data.gov.uk/id/local-authority/30UE,Unapportionable Central OHeads,1009,Customer & Digital,Emergency Call Out System,40096,Communication and Computing,5028,Out of hours standing charge 20/21,06/01/2021,0151942,394.68,Revenue,CallCare Ltd,20257,,
Chorley Borough Council,http://statistics.data.gov.uk/id/local-authority/30UE,Unapportionable Central OHeads,1009,Customer & Digital,Emergency Call Out System,40096,Communication and Computing,5028,Out of Hours call charges 20/21,06/01/2021,0151944,461.92,Revenue,CallCare Ltd,20257,,
Chorley Borough Council,http://statistics.data.gov.uk/id/local-authority/30UE,Unapportionable Central OHeads,1009,Customer & Digital,Emergency Call Out System,40096,Communication and Computing,5028,Out of Hours call charges 20/21,20/01/2021,0152316,176.40,Revenue,CallCare Ltd,20257,,
Chorley Borough Council,http://statistics.data.gov.uk/id/local-authority/30UE,Central Support Services,1009,Customer & Digital,Emergency Call Out System,40096,Communication and Computing,5028,Out of hours standing charge 20/21,20/01/2021,0152316,120.00,Revenue,CallCare Ltd,20257,,
Chorley Borough Council,http://statistics.data.gov.uk/id/local-authority/30UE,Central Support Services,1009,Customer & Digital,Miscellaneous Expenses,40200,Miscellaneous Expenses,5034,,13/01/2021,0152240,657.80,Revenue,Canon (UK) Ltd,17492,,
Chorley Borough Council,http://statistics.data.gov.uk/id/local-authority/30UE,Unapportionable Central OHeads,1009,Policy & Governance,Agency Staff,13000,Direct Employee Expenses,5001,Interim Deputy CFO - NAME REDACTED - Director of Finance 4 x Days per/week 3 x Months agency cover,22/01/2021,0151197,"2,200.00",Revenue,Castlefield Recruitment Limited,80454,,
Chorley Borough Council,http://statistics.data.gov.uk/id/local-authority/30UE,Central Support Services,1009,Policy & Governance,Agency Staff,13000,Direct Employee Expenses,5001,Interim Deputy CFO - NAME REDACTED - Director of Finance 4 x Days per/week 3 x Months agency cover,22/01/2021,0151198,"2,200.00",Revenue,Castlefield Recruitment Limited,80454,,
Chorley Borough Council,http://statistics.data.gov.uk/id/local-authority/30UE,Unapportionable Central OHeads,1009,Policy & Governance,Agency Staff,13000,Direct Employee Expenses,5001,Interim Deputy CFO - NAME REDACTED - Director of Finance 4 x Days per/week 3 x Months agency cover,22/01/2021,0151620,"2,200.00",Revenue,Castlefield Recruitment Limited,80454,,
Chorley Borough Council,http://statistics.data.gov.uk/id/local-authority/30UE,Corporate Management,1008,Policy & Governance,Agency Staff,13000,Direct Employee Expenses,5001,Covid Grants Agency Staff NAME REDACTED,22/01/2021,0151621,750.00,Revenue,Castlefield Recruitment Limited,80454,,
Chorley Borough Council,http://statistics.data.gov.uk/id/local-authority/30UE,Corporate Management,1008,Policy & Governance,Agency Staff,13000,Direct Employee Expenses,5001,Covid Grants Agency Staff NAME REDACTED,22/01/2021,0151708,375.00,Revenue,Castlefield Recruitment Limited,80454,,
Chorley Borough Council,http://statistics.data.gov.uk/id/local-authority/30UE,Unapportionable Central OHeads,1009,Policy & Governance,Agency Staff,13000,Direct Employee Expenses,5001,Interim Deputy CFO - NAME REDACTED - Director of Finance 4 x Days per/week 3 x Months agency cover,22/01/2021,0151709,"2,200.00",Revenue,Castlefield Recruitment Limited,80454,,
Chorley Borough Council,http://statistics.data.gov.uk/id/local-authority/30UE,Corporate Management,1008,Policy & Governance,Agency Staff,13000,Direct Employee Expenses,5001,Covid Grants Agency Staff NAME REDACTED,22/01/2021,0151945,"1,087.50",Revenue,Castlefield Recruitment Limited,80454,,
Chorley Borough Council,http://statistics.data.gov.uk/id/local-authority/30UE,Central Support Services,1009,Policy & Governance,Agency Staff,13000,Direct Employee Expenses,5001,Interim Deputy CFO - NAME REDACTED - Director of Finance 4 x Days per/week 3 x Months agency cover,22/01/2021,0151946,"2,200.00",Revenue,Castlefield Recruitment Limited,80454,,
Chorley Borough Council,http://statistics.data.gov.uk/id/local-authority/30UE,Corporate Management,1008,Policy & Governance,Agency Staff,13000,Direct Employee Expenses,5001,Covid Grants Agency Staff NAME REDACTED,22/01/2021,0151983,962.50,Revenue,Castlefield Recruitment Limited,80454,,
Chorley Borough Council,http://statistics.data.gov.uk/id/local-authority/30UE,Unapportionable Central OHeads,1009,Policy & Governance,Agency Staff,13000,Direct Employee Expenses,5001,Interim Deputy CFO - NAME REDACTED - Director of Finance 4 x Days per/week 3 x Months agency cover,22/01/2021,0151984,"1,100.00",Revenue,Castlefield Recruitment Limited,80454,,
Chorley Borough Council,http://statistics.data.gov.uk/id/local-authority/30UE,Unapportionable Central OHeads,1009,Policy & Governance,Agency Staff,13000,Direct Employee Expenses,5001,Interim Deputy CFO - NAME REDACTED - Director of Finance 4 x Days per/week 3 x Months agency cover,22/01/2021,0152380,"2,200.00",Revenue,Castlefield Recruitment Limited,80454,,
Chorley Borough Council,http://statistics.data.gov.uk/id/local-authority/30UE,Corporate Management,1008,Policy & Governance,Agency Staff,13000,Direct Employee Expenses,5001,Covid Grants Agency Staff NAME REDACTED,22/01/2021,0152381,"1,037.50",Revenue,Castlefield Recruitment Limited,80454,,
Chorley Borough Council,http://statistics.data.gov.uk/id/local-authority/30UE,Corporate Management,1008,Policy & Governance,Agency Staff,13000,Direct Employee Expenses,5001,Covid Grants Agency Staff NAME REDACTED,27/01/2021,0152641,"1,025.00",Revenue,Castlefield Recruitment Limited,80454,,
Chorley Borough Council,http://statistics.data.gov.uk/id/local-authority/30UE,Democratic Represent and  Mgnt,1007,Policy & Governance,Arts Development Initiatives,40187,Miscellaneous Expenses,5034,Fee for Willow Sculpture of Susannah Knight in Astley Hall Walled Garden,27/01/2021,0152639,"3,000.00",Revenue,Cherry Chung,80771,,
Chorley Borough Council,http://statistics.data.gov.uk/id/local-authority/30UE,Parking Services,1066,Commercial Services,External Contractors,50008,Private Contractors,5042,"Notice Processing Services,  Auto Telephone/Internet Payments, Internet Evidence and Submission Services, Telephone Assist",06/01/2021,0151643,487.83,Revenue,Chipside Ltd,22063,,
Chorley Borough Council,http://statistics.data.gov.uk/id/local-authority/30UE,Parking Services,1066,Commercial Services,External Contractors,50008,Private Contractors,5042,"Processing 074 for period 01.04.2020-31.03.2021 Notice Processing Services, Automated Telephone and Internet Payments",13/01/2021,0151680,352.11,Revenue,Chipside Ltd,22063,,
Chorley Borough Council,http://statistics.data.gov.uk/id/local-authority/30UE,Parking Services,1066,Commercial Services,External Contractors,50008,Private Contractors,5042,"Processing 075, 076, 077, 079, 080, 085, 086, 010, 011 MIPERMIT FEES, MIPERMIT CHARGE, ELECPAYBANKFEE",13/01/2021,0151680,59.40,Revenue,Chipside Ltd,22063,,
Chorley Borough Council,http://statistics.data.gov.uk/id/local-authority/30UE,Parking Services,1066,Commercial Services,External Contractors,50008,Private Contractors,5042,"Processing 075, 076, 077, 079, 080, 085, 086, 010, 011 MIPERMIT FEES, MIPERMIT CHARGE, ELECPAYBANKFEE",13/01/2021,0151686,337.54,Revenue,Chipside Ltd,22063,,
Chorley Borough Council,http://statistics.data.gov.uk/id/local-authority/30UE,Corporate Management,1008,Customer & Digital,Taxi Testing & Vehicle Safety Report,40234,Services,5027,dec 2020,15/01/2021,0152342,"1,261.55",Revenue,Chorley Autocare Ltd,17110,,
Chorley Borough Council,http://statistics.data.gov.uk/id/local-authority/30UE,Regulatory Services,1048,Customer & Digital,Taxi Testing & Vehicle Safety Report,40234,Services,5027,txi test,15/01/2021,0152342,196.65,Revenue,Chorley Autocare Ltd,17110,,
Chorley Borough Council,http://statistics.data.gov.uk/id/local-authority/30UE,Central Support Services,1009,Early Intervention,Core Funding Grants,40133,Grants and Subscriptions,5031,Small community grant funding,15/01/2021,0152225,388.00,Revenue,Chorley Panthers RLFC,80974,,
Chorley Borough Council,http://statistics.data.gov.uk/id/local-authority/30UE,Democratic Represent and  Mgnt,1007,Policy & Governance,Grants To Other Organisations,40127,Grants and Subscriptions,5031,Councillor Community Grant,13/01/2021,0152100,300.00,Revenue,Chorley`s Angels Community Group,63882,,
Chorley Borough Council,http://statistics.data.gov.uk/id/local-authority/30UE,Community Development,1097,Policy & Governance,Citizens Advice Bureau,40125,Grants and Subscriptions,5031,Annual commission for the provision of Advice Services in Chorley from 1 June 2020 to 31 March 2021 (1 January to 31 March),27/01/2021,0152464,"14,200.00",Revenue,Citizens Advice Lancashire,17035,,
Chorley Borough Council,http://statistics.data.gov.uk/id/local-authority/30UE,Economic Development,1096,Commercial Services,Tools & Equipment - Purchase,40003,"Equipment, Furniture & Materia",5023,Please supply: As per quotation 5761 dated 30.09.2020,15/01/2021,0152340,"62,502.25",Revenue,City B Group Ltd,47300,,
Chorley Borough Council,http://statistics.data.gov.uk/id/local-authority/30UE,Economic Development,1096,Commercial Services,Christmas Lights,40179,Miscellaneous Expenses,5034,"1) The 7 Trees on MW side of Flat Iron Car Park ( Near canopy- 2 green, 5 bare) -In cool white bright led icicles on MW extension ",29/01/2021,0152570,"5,450.00",Revenue,City Illuminations Ltd,77388,,
Chorley Borough Council,http://statistics.data.gov.uk/id/local-authority/30UE,Economic Development,1096,Commercial Services,Christmas Lights,40179,Miscellaneous Expenses,5034,Chorley Christmas light additions 2020 PORTLAND STREET Pole features 5 off / festoon/floods/lamps/strobes/led swirls on cols,29/01/2021,0152571,"47,920.00",Revenue,City Illuminations Ltd,77388,,
Chorley Borough Council,http://statistics.data.gov.uk/id/local-authority/30UE,Central Support Services,1009,Commercial Services,Professional Fees,40063,Services,5027,BREEAm Design Stage Assessment & Submission Alker Lane,13/01/2021,0151920,"2,600.00",Revenue,Complete Sustainability Solutions,80558,,
Chorley Borough Council,http://statistics.data.gov.uk/id/local-authority/30UE,Central Support Services,1009,Customer & Digital,Computer Equipment-Purchase,40098,Communication and Computing,5028,Primrose Gardens and Market Street Column Works 3673 original PO 056019,27/01/2021,0152088,"7,912.00",Revenue,Core Integrated Solutions,77043,,
Chorley Borough Council,http://statistics.data.gov.uk/id/local-authority/30UE,Central Support Services,1009,Customer & Digital,External Contractor,40198,Miscellaneous Expenses,5034,Moss Lane - existing black 50mm electrical to be replaced by red 38mm ducts,13/01/2021,0152089,700.00,Revenue,Core Integrated Solutions,77043,,
Chorley Borough Council,http://statistics.data.gov.uk/id/local-authority/30UE,Capital,Capital,Commercial Services,Main Contractor,03007,Capital Expenditure,Capital,Leisure centre electrical works instructed by NAME REDACTED Approved by NAME REDACTED,13/01/2021,0152265,577.50,Capital,Corlett Electrical Eng Co Ltd,16271,,
Chorley Borough Council,http://statistics.data.gov.uk/id/local-authority/30UE,Central Support Services,1009,Commercial Services,General Repairs - Reactive,20004,Repairs Maintenance & Alts,5005,Reactive Blanket,29/01/2021,0152431,425.20,Revenue,Corlett Electrical Eng Co Ltd,16271,,
Chorley Borough Council,http://statistics.data.gov.uk/id/local-authority/30UE,Unapportionable Central OHeads,1009,Commercial Services,General Repairs - Reactive,20004,Repairs Maintenance & Alts,5005,Reactive Blanket,29/01/2021,0152501,351.44,Revenue,Corlett Electrical Eng Co Ltd,16271,,
Chorley Borough Council,http://statistics.data.gov.uk/id/local-authority/30UE,Central Support Services,1009,Commercial Services,General Repairs - Reactive,20004,Repairs Maintenance & Alts,5005,Reactive Blanket,29/01/2021,0152506,447.00,Revenue,Corlett Electrical Eng Co Ltd,16271,,
Chorley Borough Council,http://statistics.data.gov.uk/id/local-authority/30UE,Recreation & Sport,1037,Commercial Services,Planned Maintenance,20006,Repairs Maintenance & Alts,5005,All Seasons 5 year Statutory electrical test and inspection,27/01/2021,0152648,"4,400.00",Revenue,Corlett Electrical Eng Co Ltd,16271,,
Chorley Borough Council,http://statistics.data.gov.uk/id/local-authority/30UE,Democratic Represent and  Mgnt,1007,Commercial Services,Planned Maintenance,20006,Repairs Maintenance & Alts,5005,Brinscall Baths 5 year statutory electrical test and inspection,27/01/2021,0152649,"1,178.40",Revenue,Corlett Electrical Eng Co Ltd,16271,,
Chorley Borough Council,http://statistics.data.gov.uk/id/local-authority/30UE,Service Management & Support,1009,Customer & Digital,Grounds Maintenance Contractor,20043,Grounds Maintenance Costs,5013,"Tree works at Pleasant View, Withnell.",13/01/2021,0152098,"1,500.00",Revenue,Cornthwaite Tree Care,21250,,
Chorley Borough Council,http://statistics.data.gov.uk/id/local-authority/30UE,Homelessness,1075,Commercial Services,Gas,20014,Energy Costs,5006,Nov 20 - Dec 20,13/01/2021,0152124,858.91,Revenue,Corona Energy Retail 2 Ltd,67249,,
Chorley Borough Council,http://statistics.data.gov.uk/id/local-authority/30UE,Recreation & Sport,1037,Commercial Services,Gas,20014,Energy Costs,5006,Nov 20 - Dec 20,13/01/2021,0152129,"1,089.18",Revenue,Corona Energy Retail 2 Ltd,67249,,
Chorley Borough Council,http://statistics.data.gov.uk/id/local-authority/30UE,Democratic Represent and  Mgnt,1007,Commercial Services,Gas,20014,Energy Costs,5006,Nov 20 - Dec 20,13/01/2021,0152131,471.60,Revenue,Corona Energy Retail 2 Ltd,67249,,
Chorley Borough Council,http://statistics.data.gov.uk/id/local-authority/30UE,Central Support Services,1009,Commercial Services,Gas,20014,Energy Costs,5006,Nov 20 - Dec 20,13/01/2021,0152132,667.96,Revenue,Corona Energy Retail 2 Ltd,67249,,
Chorley Borough Council,http://statistics.data.gov.uk/id/local-authority/30UE,Central Support Services,1009,Commercial Services,Gas,20014,Energy Costs,5006,Nov 20 - Dec 20,13/01/2021,0152133,"1,003.68",Revenue,Corona Energy Retail 2 Ltd,67249,,
Chorley Borough Council,http://statistics.data.gov.uk/id/local-authority/30UE,Central Support Services,1009,Commercial Services,Gas,20014,Energy Costs,5006,oct -nov-2020,20/01/2021,0152358,597.53,Revenue,Corona Energy Retail 2 Ltd,67249,,
Chorley Borough Council,http://statistics.data.gov.uk/id/local-authority/30UE,Unapportionable Central OHeads,1009,Commercial Services,Gas,20014,Energy Costs,5006,dec20to jan21,29/01/2021,0152763,"1,287.56",Revenue,Corona Energy Retail 2 Ltd,67249,,
Chorley Borough Council,http://statistics.data.gov.uk/id/local-authority/30UE,Central Support Services,1009,Commercial Services,Gas,20014,Energy Costs,5006,dec20 to jan21,29/01/2021,0152764,989.54,Revenue,Corona Energy Retail 2 Ltd,67249,,
Chorley Borough Council,http://statistics.data.gov.uk/id/local-authority/30UE,Democratic Represent and  Mgnt,1007,Commercial Services,Gas,20014,Energy Costs,5006,dec20 to jan21,29/01/2021,0152788,470.59,Revenue,Corona Energy Retail 2 Ltd,67249,,
Chorley Borough Council,http://statistics.data.gov.uk/id/local-authority/30UE,Homelessness,1075,Commercial Services,Gas,20014,Energy Costs,5006,dec20-jan21,29/01/2021,0152799,"1,064.14",Revenue,Corona Energy Retail 2 Ltd,67249,,
Chorley Borough Council,http://statistics.data.gov.uk/id/local-authority/30UE,Recreation & Sport,1037,Commercial Services,Gas,20014,Energy Costs,5006,dec20tojan21,29/01/2021,0152801,252.45,Revenue,Corona Energy Retail 2 Ltd,67249,,
Chorley Borough Council,http://statistics.data.gov.uk/id/local-authority/30UE,Democratic Represent and  Mgnt,1007,Commercial Services,Gas,20014,Energy Costs,5006,dec20tojan21,29/01/2021,0152815,"1,606.78",Revenue,Corona Energy Retail 2 Ltd,67249,,
Chorley Borough Council,http://statistics.data.gov.uk/id/local-authority/30UE,Central Support Services,1009,Customer & Digital,Tools & Equipment - Maintenance,40005,"Equipment, Furniture & Materia",5023,Jabra Panacast Camera x1 Jabra PanaCast USB Hub x1 Jabra SPEAK 410 USB Speakerphone - MS x1 CAR*STD Carriage ,06/01/2021,0151203,641.11,Revenue,Corporte Direct (Europe) Ltd (Trading as Corptel),22135,,
Chorley Borough Council,http://statistics.data.gov.uk/id/local-authority/30UE,Central Support Services,1009,Customer & Digital,Items For Resale,40027,"Equipment, Furniture & Materia",5023,240 L Neo plastic wheeled bin (BROWN) Quantity = 300     with Chorley logo,06/01/2021,0151674,"5,085.00",Revenue,Craemer UK Ltd,64712,,
Chorley Borough Council,http://statistics.data.gov.uk/id/local-authority/30UE,Central Support Services,1009,Early Intervention,Core Funding Grants,40133,Grants and Subscriptions,5031,Small Community grant funding,15/01/2021,0152215,309.00,Revenue,Croston Old School,78306,,
Chorley Borough Council,http://statistics.data.gov.uk/id/local-authority/30UE,Other Short Term Debtors,,Policy & Governance,Other Debtors,00098,Balance Sheet,Balance,Cyclescheme purchase for NAME REDACTED,22/01/2021,0152188,270.83,Revenue,Cyclescheme Ltd,78414,,
Chorley Borough Council,http://statistics.data.gov.uk/id/local-authority/30UE,Corporate Management,1008,Policy & Governance,Miscellaneous Expenses,40200,Miscellaneous Expenses,5034,Hire of eight portable hand wash stations from 14th Dec 2020 to 10th Jan 2021 (four weeks). Invoice number: 3121.,22/01/2021,0152383,"1,440.00",Revenue,Cyril Unsworth Ltd,78887,,
Chorley Borough Council,http://statistics.data.gov.uk/id/local-authority/30UE,Central Support Services,1009,Customer & Digital,Computer Equipment-Purchase,40098,Communication and Computing,5028,8 x 10GSFP-T Dell Compatible 10GBASE-T SFP+ Copper RJ-,13/01/2021,0152051,"1,072.00",Revenue,DAC Technology Ltd,76398,,
Chorley Borough Council,http://statistics.data.gov.uk/id/local-authority/30UE,Central Support Services,1009,Customer & Digital,Computer Equipment-Purchase,40098,Communication and Computing,5028,del charge,13/01/2021,0152051,12.00,Revenue,DAC Technology Ltd,76398,,
Chorley Borough Council,http://statistics.data.gov.uk/id/local-authority/30UE,Central Support Services,1009,Customer & Digital,Computer Equipment-Purchase,40098,Communication and Computing,5028,13 x iPhone SE 339 each 1 x delivery 12,27/01/2021,0152665,"4,419.00",Revenue,DAC Technology Ltd,76398,,
Chorley Borough Council,http://statistics.data.gov.uk/id/local-authority/30UE,Unapportionable Central OHeads,1009,Policy & Governance,Refunds,40220,Miscellaneous Expenses,5034,Refund of overpayment of legal fees,15/01/2021,0152230,300.00,Revenue,NAME REDACTED,81182,,
Chorley Borough Council,http://statistics.data.gov.uk/id/local-authority/30UE,Control Accounts,Control,Policy & Governance,General Balances,00100,Balance Sheet,Balance,Child Maint,13/01/2021,0152212,450.58,Revenue,Department for Work and Pensions,80469,,
Chorley Borough Council,http://statistics.data.gov.uk/id/local-authority/30UE,Control Accounts,Control,Policy & Governance,General Balances,00100,Balance Sheet,Balance,CMS,22/01/2021,0152600,450.58,Revenue,Department for Work and Pensions,80469,,
Chorley Borough Council,http://statistics.data.gov.uk/id/local-authority/30UE,Service Management & Support,1009,Customer & Digital,Grounds Maintenance Contractor,20043,Grounds Maintenance Costs,5013,1 days work for man and machine cleaning silt out of Big lodge at Yarrow valley park.,13/01/2021,0152046,250.00,Revenue,Derek R Smith,21092,,
Chorley Borough Council,http://statistics.data.gov.uk/id/local-authority/30UE,Service Management & Support,1009,Customer & Digital,Supplies-Grounds Maintenance,40025,"Equipment, Furniture & Materia",5023,"1 machine ,dumper and operative to remove silt from Big Lodge at Yarrow valley park.",13/01/2021,0152048,500.00,Revenue,Derek R Smith,21092,,
Chorley Borough Council,http://statistics.data.gov.uk/id/local-authority/30UE,Service Management & Support,1009,Customer & Digital,Protective Clothing,40040,"Clothing, Uniforms and Laundry",5025,Stihl Advance X-Flex chainsaw trousers type C 1x  31-34inch waist @ 177.08  1x 34-38inch waist @ 177.08  ,20/01/2021,0152386,354.16,Revenue,Dick Leigh,17138,,
Chorley Borough Council,http://statistics.data.gov.uk/id/local-authority/30UE,Service Management & Support,1009,Customer & Digital,Protective Clothing,40040,"Clothing, Uniforms and Laundry",5025,1x Stihl advance x flex chainsaw trousers type c size Medium 32w 32leg  @ 177.08each,27/01/2021,0152617,177.08,Revenue,Dick Leigh,17138,,
Chorley Borough Council,http://statistics.data.gov.uk/id/local-authority/30UE,Service Management & Support,1009,Customer & Digital,Protective Clothing,40040,"Clothing, Uniforms and Laundry",5025,1x Stihl Dynamic Ranger boots size 10.5 @ 140.25,27/01/2021,0152617,140.25,Revenue,Dick Leigh,17138,,
Chorley Borough Council,http://statistics.data.gov.uk/id/local-authority/30UE,Building Control,1090,Customer & Digital,Training Course Fees,17010,Indirect Employee Expenses,5002,NAME REDACTED - (Level 4 CIOB Diploma in Building Control- Sept 2020),20/01/2021,0152402,"2,501.00",Revenue,District Surveyors Association Limited t/a LABC,17538,,
Chorley Borough Council,http://statistics.data.gov.uk/id/local-authority/30UE,Central Support Services,1009,Early Intervention,Core Funding Grants,40133,Grants and Subscriptions,5031,Small community grant funding,15/01/2021,0152219,250.00,Revenue,Eccleston Parish Council,17027,,
Chorley Borough Council,http://statistics.data.gov.uk/id/local-authority/30UE,Business Support,1095,Commercial Services,Electricity,20013,Energy Costs,5006,1 November 2018 - 7 August 2020,27/01/2021,0152721,258.27,Revenue,Ecotricity,78400,,
Chorley Borough Council,http://statistics.data.gov.uk/id/local-authority/30UE,Parking Services,1066,Commercial Services,Tools & Equipment - Maintenance,40005,"Equipment, Furniture & Materia",5023,"To carry out repairs to the Brunswick street barrier will be 600 .00 plus vat -picking the barrier up, fitting barrier back onto post.",06/01/2021,0151971,600.00,Revenue,Edwards Wrought Iron Ltd,77654,,
Chorley Borough Council,http://statistics.data.gov.uk/id/local-authority/30UE,Central Support Services,1009,Customer & Digital,Mobile Voice and Data,40086,Communication and Computing,5028,charges,22/01/2021,0152630,"2,330.57",Revenue,EE - Orange,16486,,
Chorley Borough Council,http://statistics.data.gov.uk/id/local-authority/30UE,Central Support Services,1009,Policy & Governance,Mobile Voice and Data,40086,Communication and Computing,5028,charges,22/01/2021,0152631,"2,695.72",Revenue,EE - Orange,16486,,
Chorley Borough Council,http://statistics.data.gov.uk/id/local-authority/30UE,Central Support Services,1009,Policy & Governance,Mobile Voice and Data,40086,Communication and Computing,5028,Charges,22/01/2021,0152632,"3,169.84",Revenue,EE - Orange,16486,,
Chorley Borough Council,http://statistics.data.gov.uk/id/local-authority/30UE,Central Support Services,1009,Policy & Governance,Mobile Voice and Data,40086,Communication and Computing,5028,Charges,22/01/2021,0152632,30.00,Revenue,EE - Orange,16486,,
Chorley Borough Council,http://statistics.data.gov.uk/id/local-authority/30UE,Central Support Services,1009,Policy & Governance,Mobile Voice and Data,40086,Communication and Computing,5028,charges,22/01/2021,0152633,"3,165.40",Revenue,EE - Orange,16486,,
Chorley Borough Council,http://statistics.data.gov.uk/id/local-authority/30UE,Central Support Services,1009,Commercial Services,General Repairs - Reactive,20004,Repairs Maintenance & Alts,5005,Blanket reactive,27/01/2021,0151768,371.50,Revenue,EFT Construction,78195,,
Chorley Borough Council,http://statistics.data.gov.uk/id/local-authority/30UE,Unapportionable Central OHeads,1009,Commercial Services,General Repairs - Reactive,20004,Repairs Maintenance & Alts,5005,Blanket reactive,27/01/2021,0151836,267.90,Revenue,EFT Construction,78195,,
Chorley Borough Council,http://statistics.data.gov.uk/id/local-authority/30UE,Central Support Services,1009,Commercial Services,Asset Maintenance Fund,20012,Repairs Maintenance & Alts,5005,Refugee reactive,27/01/2021,0151845,524.69,Revenue,EFT Construction,78195,,
Chorley Borough Council,http://statistics.data.gov.uk/id/local-authority/30UE,Central Support Services,1009,Commercial Services,General Repairs - Reactive,20004,Repairs Maintenance & Alts,5005,Blanket reactive,27/01/2021,0151846,519.75,Revenue,EFT Construction,78195,,
Chorley Borough Council,http://statistics.data.gov.uk/id/local-authority/30UE,Capital,Capital,Commercial Services,Main Contractor,03007,Capital Expenditure,Capital,"Leisure centres general building repair works Approved by NAME REDACTED TF order 11877 TF order 11935 1.0	Affix h",13/01/2021,0152257,545.50,Capital,EFT Construction,78195,,
Chorley Borough Council,http://statistics.data.gov.uk/id/local-authority/30UE,Capital,Capital,Commercial Services,Main Contractor,03007,Capital Expenditure,Capital,"Leisure centres general building repair works Approved by NAME REDACTED TF order 11877 TF order 11935 1.0	Affix h",13/01/2021,0152258,323.60,Capital,EFT Construction,78195,,
Chorley Borough Council,http://statistics.data.gov.uk/id/local-authority/30UE,Capital,Capital,Commercial Services,Main Contractor,03007,Capital Expenditure,Capital,"Leisure centres general building repair works Approved by NAME REDACTED TF order 11877 TF order 11935 1.0	Affix h",13/01/2021,0152259,287.20,Capital,EFT Construction,78195,,
Chorley Borough Council,http://statistics.data.gov.uk/id/local-authority/30UE,Capital,Capital,Commercial Services,Main Contractor,03007,Capital Expenditure,Capital,"Leisure centres general building repair works Approved by NAME REDACTED TF order 11877 TF order 11935 1.0	Affix h",13/01/2021,0152260,"1,365.20",Capital,EFT Construction,78195,,
Chorley Borough Council,http://statistics.data.gov.uk/id/local-authority/30UE,Corporate Management,1008,Commercial Services,Miscellaneous Expenses,40200,Miscellaneous Expenses,5034,General Building Works in Union St for covid safe working / kitchen areas,20/01/2021,0152416,"3,502.22",Revenue,EFT Construction,78195,,
Chorley Borough Council,http://statistics.data.gov.uk/id/local-authority/30UE,Democratic Represent and  Mgnt,1007,Policy & Governance,Grants To Other Organisations,40127,Grants and Subscriptions,5031,Cllr Grant 2019/20,06/01/2021,0151926,300.00,Revenue,Emerging Futures,81216,,
Chorley Borough Council,http://statistics.data.gov.uk/id/local-authority/30UE,Capital,Capital,Policy & Governance,Other Contractor,03012,Capital Expenditure,Capital,"Delivery to Astley Hall, Chorley, PR7 1XA. Call NUMBER REDACTED for access at site. 25 x LH26 � Solid clear acrylic display ",29/01/2021,0151062,413.73,Capital,EMX Dynamics Limited,81230,,
Chorley Borough Council,http://statistics.data.gov.uk/id/local-authority/30UE,Capital,Capital,Commercial Services,Main Contractor,03007,Capital Expenditure,Capital,Fleet St Extra Care - Final invoice (retrospective order - for invoice no: AP0360-30) already received),06/01/2021,0151979,"130,773.32",Capital,Eric Wright Construction Ltd,76464,,
Chorley Borough Council,http://statistics.data.gov.uk/id/local-authority/30UE,Capital,Capital,Commercial Services,Main Contractor,03007,Capital Expenditure,Capital,vatable,06/01/2021,0151979,"16,163.00",Capital,Eric Wright Construction Ltd,76464,,
Chorley Borough Council,http://statistics.data.gov.uk/id/local-authority/30UE,Capital,Capital,Commercial Services,Main Contractor,03007,Capital Expenditure,Capital,Friday Street Retention,06/01/2021,0151980,"23,747.01",Capital,Eric Wright Construction Ltd,76464,,
Chorley Borough Council,http://statistics.data.gov.uk/id/local-authority/30UE,Capital,Capital,Commercial Services,Main Contractor,03007,Capital Expenditure,Capital,Market Walk Phase 2 Retention (Part of the original contract sum but the PO has been closed off),06/01/2021,0151981,"114,702.54",Capital,Eric Wright Construction Ltd,76464,,
Chorley Borough Council,http://statistics.data.gov.uk/id/local-authority/30UE,Business Support,1095,Commercial Services,Internet Charges,40104,Communication and Computing,5028,Call off p/o for Fixed Recurring Subscription Fees - April 2020 to March 2021 Connect Service Growth Edition: software charge,06/01/2021,0151972,"3,810.00",Revenue,Essensys Ltd,77836,,
Chorley Borough Council,http://statistics.data.gov.uk/id/local-authority/30UE,Business Support,1095,Commercial Services,Internet Charges,40104,Communication and Computing,5028,Call off p/o for Fixed Recurring Subscription Fees - April 2020 to March 2021 Connect Service Growth Edition: software charge,27/01/2021,0152147,"3,810.00",Revenue,Essensys Ltd,77836,,
Chorley Borough Council,http://statistics.data.gov.uk/id/local-authority/30UE,Central Support Services,1009,Early Intervention,Core Funding Grants,40133,Grants and Subscriptions,5031,Small community grant funding,15/01/2021,0152221,270.00,Revenue,Euxton Parish Church Community Centre,80967,,
Chorley Borough Council,http://statistics.data.gov.uk/id/local-authority/30UE,Corporate Management,1008,Customer & Digital,Miscellaneous Expenses,40200,Miscellaneous Expenses,5034, 16 x 5l Hebe `Blue Gem` 16 x 5l Skimmia `Kew Green` 16 x 5l Carex Morowii `Ice Dancer` 16 x  3l Skimmia ` Rubella`,06/01/2021,0151919,554.20,Revenue,Everglades Nurseries Ltd,20202,,
Chorley Borough Council,http://statistics.data.gov.uk/id/local-authority/30UE,Central Support Services,1009,Early Intervention,Core Funding Grants,40133,Grants and Subscriptions,5031,Small Community Grant Funding,15/01/2021,0152214,375.00,Revenue,Father Andrew Brown,76242,,
Chorley Borough Council,http://statistics.data.gov.uk/id/local-authority/30UE,Central Support Services,1009,Customer & Digital,Unitary Payment(S),50009,Private Contractors,5042,Provision of waste and recycling collection services 2020-2021,15/01/2021,0151637,"186,612.31",Revenue,FCC Environment Services (UK) Limited,77903,,
Chorley Borough Council,http://statistics.data.gov.uk/id/local-authority/30UE,Corporate Management,1008,Customer & Digital,Miscellaneous Expenses,40200,Miscellaneous Expenses,5034,Additional costs for waste collection services during Covid-19 lockdown period 2020,15/01/2021,0152204,"22,837.12",Revenue,FCC Environment Services (UK) Limited,77903,,
Chorley Borough Council,http://statistics.data.gov.uk/id/local-authority/30UE,Business Support,1095,Commercial Services,Planned Maintenance,20006,Repairs Maintenance & Alts,5005,Fire Risk Assessment for Strawberry Fields as per quote,20/01/2021,0152343,950.00,Revenue,Fire and Risk Management Support Services Ltd,77505,,
Chorley Borough Council,http://statistics.data.gov.uk/id/local-authority/30UE,Central Support Services,1009,Early Intervention,Core Funding Grants,40133,Grants and Subscriptions,5031,Small community grant funding,15/01/2021,0152216,250.00,Revenue,FRIENDS FOR YOU,80966,,
Chorley Borough Council,http://statistics.data.gov.uk/id/local-authority/30UE,Central Support Services,1009,Commercial Services,Other Contributions,40145,Grants and Subscriptions,5031,"New gas Main to land off Alker Lane, Chorley",22/01/2021,0152488,"48,296.93",Revenue,Fulcrum Pipelines Limited,78205,,
Chorley Borough Council,http://statistics.data.gov.uk/id/local-authority/30UE,Homelessness,1075,Commercial Services,Furniture - Purchase,40012,"Equipment, Furniture & Materia",5023,"1 X set of Hereford 4 drawer chest 2X Newlyn Waterproof bed divan ,single with Mattress`s Total = 533.47( ex VAT)",08/01/2021,0150767,545.47,Revenue,Furniture Resource Centre Ltd,22085,,
Chorley Borough Council,http://statistics.data.gov.uk/id/local-authority/30UE,Democratic Represent and  Mgnt,1007,Commercial Services,Tools & Equipment - Hire,40004,"Equipment, Furniture & Materia",5023,All seasons hyproliser  rental monthly fee 420.14 12 months contract,20/01/2021,0152458,420.14,Revenue,Gaffey Technical Services Ltd,18844,,
Chorley Borough Council,http://statistics.data.gov.uk/id/local-authority/30UE,Service Management & Support,1009,Customer & Digital,Hire Of Vehicles and Plant,30028,Contrct Hire & Operating Lease,5018,3 Year Contract hire 1x Schmidt Swingo 200+ as per ITT including servicing and Maintenance,06/01/2021,0151908,"2,019.85",Revenue,Go Plant Fleet Services Ltd,80857,,
Chorley Borough Council,http://statistics.data.gov.uk/id/local-authority/30UE,Service Management & Support,1009,Customer & Digital,Hire Of Vehicles and Plant,30028,Contrct Hire & Operating Lease,5018,3 Year Contract Hire Chassis mounted sweeper as per ITT. Including servicing and Maintenance. to be paid monthly in arrears,13/01/2021,0151909,"2,772.31",Revenue,Go Plant Fleet Services Ltd,80857,,
Chorley Borough Council,http://statistics.data.gov.uk/id/local-authority/30UE,Service Management & Support,1009,Customer & Digital,Hire Of Vehicles and Plant,30028,Contrct Hire & Operating Lease,5018,3 Year Contract hire 1x Johnston CN101 as per ITT including servicing and Maintenance,13/01/2021,0151910,"1,762.23",Revenue,Go Plant Fleet Services Ltd,80857,,
Chorley Borough Council,http://statistics.data.gov.uk/id/local-authority/30UE,Service Management & Support,1009,Customer & Digital,Supplies-Grounds Maintenance,40025,"Equipment, Furniture & Materia",5023,As per INV00016685 Supply x 12 Schmidt mixed poly wire brushes,06/01/2021,0151911,448.27,Revenue,Go Plant Fleet Services Ltd,80857,,
Chorley Borough Council,http://statistics.data.gov.uk/id/local-authority/30UE,Service Management & Support,1009,Customer & Digital,Hire Of Vehicles and Plant,30028,Contrct Hire & Operating Lease,5018,3 Year Contract hire 1x Schmidt Swingo 200+ as per ITT including servicing and Maintenance,13/01/2021,0151912,"2,019.85",Revenue,Go Plant Fleet Services Ltd,80857,,
Chorley Borough Council,http://statistics.data.gov.uk/id/local-authority/30UE,Service Management & Support,1009,Customer & Digital,Vehicles and Plant Maintenance,30045,Direct Transport Costs,5016,New PCB Board fitted by Schmidt to AJ19 GFX,27/01/2021,0152445,524.17,Revenue,Go Plant Fleet Services Ltd,80857,,
Chorley Borough Council,http://statistics.data.gov.uk/id/local-authority/30UE,Service Management & Support,1009,Customer & Digital,Hire Of Vehicles and Plant,30028,Contrct Hire & Operating Lease,5018,3 Year Contract hire 1x Johnston CN101 as per ITT including servicing and Maintenance,27/01/2021,0152722,"1,762.23",Revenue,Go Plant Fleet Services Ltd,80857,,
Chorley Borough Council,http://statistics.data.gov.uk/id/local-authority/30UE,Service Management & Support,1009,Customer & Digital,Hire Of Vehicles and Plant,30028,Contrct Hire & Operating Lease,5018,3 Year Contract Hire Chassis mounted sweeper as per ITT. Including servicing and Maintenance. to be paid monthly in arrears,27/01/2021,0152723,"2,772.31",Revenue,Go Plant Fleet Services Ltd,80857,,
Chorley Borough Council,http://statistics.data.gov.uk/id/local-authority/30UE,Service Management & Support,1009,Customer & Digital,Hire Of Vehicles and Plant,30028,Contrct Hire & Operating Lease,5018,3 Year Contract hire 1x Schmidt Swingo 200+ as per ITT including servicing and Maintenance,27/01/2021,0152724,"2,019.85",Revenue,Go Plant Fleet Services Ltd,80857,,
Chorley Borough Council,http://statistics.data.gov.uk/id/local-authority/30UE,Service Management & Support,1009,Customer & Digital,Hire Of Vehicles and Plant,30028,Contrct Hire & Operating Lease,5018,3 Year Contract hire 1x Schmidt Swingo 200+ as per ITT including servicing and Maintenance,27/01/2021,0152725,"2,019.85",Revenue,Go Plant Fleet Services Ltd,80857,,
Chorley Borough Council,http://statistics.data.gov.uk/id/local-authority/30UE,Service Management & Support,1009,Customer & Digital,Vehicles and Plant Maintenance,30045,Direct Transport Costs,5016,cancelled out by credit,13/01/2021,0149153,565.00,Revenue,Go Plant Ltd,77990,,
Chorley Borough Council,http://statistics.data.gov.uk/id/local-authority/30UE,Service Management & Support,1009,Customer & Digital,Supplies-Grounds Maintenance,40025,"Equipment, Furniture & Materia",5023,cancelled by credit,13/01/2021,0149296,"1,713.32",Revenue,Go Plant Ltd,77990,,
Chorley Borough Council,http://statistics.data.gov.uk/id/local-authority/30UE,Corporate Management,1008,Customer & Digital,Professional Fees,40063,Services,5027,Monthly Card fees,13/01/2021,0151929,166.66,Revenue,GoCardless,77457,,
Chorley Borough Council,http://statistics.data.gov.uk/id/local-authority/30UE,Central Support Services,1009,Customer & Digital,Professional Fees,40063,Services,5027,Chargebacks,13/01/2021,0151929,-0.97,Revenue,GoCardless,77457,,
Chorley Borough Council,http://statistics.data.gov.uk/id/local-authority/30UE,Corporate Management,1008,Customer & Digital,Professional Fees,40063,Services,5027,Paid payments,13/01/2021,0151929,188.49,Revenue,GoCardless,77457,,
Chorley Borough Council,http://statistics.data.gov.uk/id/local-authority/30UE,Economic Development,1096,Commercial Services,Professional Fees,40063,Services,5027,As per reference: GCSL003 � CBC005� DG/007a - Covered Market Refurbishment & Upgrade Works (Delivery Fee Proposal),13/01/2021,0151970,149.99,Revenue,Gosling Construction Services,78380,,
Chorley Borough Council,http://statistics.data.gov.uk/id/local-authority/30UE,Economic Development,1096,Commercial Services,Professional Fees,40063,Services,5027,Detailed Planning & Logistics Development of a detailed works programme including all necessary updates as works proceed,13/01/2021,0151970,599.94,Revenue,Gosling Construction Services,78380,,
Chorley Borough Council,http://statistics.data.gov.uk/id/local-authority/30UE,Economic Development,1096,Commercial Services,Professional Fees,40063,Services,5027,"Visiting Supervision Provision of qualified visiting supervision to: Check and respond to RAMS, Project Manage the co-ordination ",13/01/2021,0151970,299.98,Revenue,Gosling Construction Services,78380,,
Chorley Borough Council,http://statistics.data.gov.uk/id/local-authority/30UE,Economic Development,1096,Commercial Services,Professional Fees,40063,Services,5027,Design Management Work with the design team to develop the design and meet the Client brief Support the Architect in the ,13/01/2021,0151970,299.98,Revenue,Gosling Construction Services,78380,,
Chorley Borough Council,http://statistics.data.gov.uk/id/local-authority/30UE,Central Support Services,1009,Commercial Services,Consultants` Fees,40077,Services,5027,"Provision of professional services to deliver development projects, incl Alker Lane and Tatton",15/01/2021,0152320,"5,251.60",Revenue,Gosling Construction Services,78380,,
Chorley Borough Council,http://statistics.data.gov.uk/id/local-authority/30UE,Central Support Services,1009,Customer & Digital,Computer - Support Services,40111,Communication and Computing,5028,Goss Content Live Environment (Lite) (x2) Goss Content Test Environment (x2) Goss Development Licence for development ,06/01/2021,0150715,"5,500.00",Revenue,GOSS Interactive Limited,20316,,
Chorley Borough Council,http://statistics.data.gov.uk/id/local-authority/30UE,Central Support Services,1009,Customer & Digital,Vandalism Repairs,20005,Repairs Maintenance & Alts,5005,Graffiti removal contract December 2020 ongoing,06/01/2021,0151669,255.00,Revenue,Graffiti Away Ltd,78340,,
Chorley Borough Council,http://statistics.data.gov.uk/id/local-authority/30UE,Central Support Services,1009,Customer & Digital,Vandalism Repairs,20005,Repairs Maintenance & Alts,5005,Graffiti removal contract December 2020 ongoing,27/01/2021,0152489,325.00,Revenue,Graffiti Away Ltd,78340,,
Chorley Borough Council,http://statistics.data.gov.uk/id/local-authority/30UE,Economic Development,1096,Commercial Services,Printing,40043,"Printing, Stationery & General",5026,"HP No.953XL Ink Cart HC Black, HP No.953XL Ink Cart HC Cyan, HP No.953XL Ink Cart HC Magenta F6U1",20/01/2021,0152462,259.60,Revenue,Grafton Projects Limited,76545,,
Chorley Borough Council,http://statistics.data.gov.uk/id/local-authority/30UE,Corporate Management,1008,Commercial Services,Publicity - Advertising,40157,Miscellaneous Expenses,5034,"Social Media for Market Walk, Chorley.  July 2020 - March 2021 @500 per month Total 4500 + VAT",06/01/2021,0151947,500.00,Revenue,Gravity,77837,,
Chorley Borough Council,http://statistics.data.gov.uk/id/local-authority/30UE,Open Spaces,1038,Early Intervention,Supplies-Grounds Maintenance,40025,"Equipment, Furniture & Materia",5023,"Additional safety surfacing and flipper supply and install at Lodge Bank Play Area, Brinscall.",20/01/2021,0152473,"2,158.00",Revenue,Hags Smp LTD,22492,,
Chorley Borough Council,http://statistics.data.gov.uk/id/local-authority/30UE,Democratic Represent and  Mgnt,1007,Early Intervention,Supplies-Grounds Maintenance,40025,"Equipment, Furniture & Materia",5023,Lodge Bank Play Area refurbishment to design and quotes Q-25523-D4N1 and Q-26112-D0F5 in partnership with Withnell Parish,20/01/2021,0152474,"5,266.00",Revenue,Hags Smp LTD,22492,,
Chorley Borough Council,http://statistics.data.gov.uk/id/local-authority/30UE,Corporate Management,1008,Policy & Governance,Miscellaneous Expenses,40200,Miscellaneous Expenses,5034,Hire of 8 mobile hand wash sinks from 1st to 31st December 2020.,08/01/2021,0152002,"1,440.00",Revenue,Hallmark Catering,78575,,
Chorley Borough Council,http://statistics.data.gov.uk/id/local-authority/30UE,Corporate Management,1008,Policy & Governance,Miscellaneous Expenses,40200,Miscellaneous Expenses,5034,Hire of eight mobile wash sinks from 1st January to 31st January 2021. Contract number: 0000023341,29/01/2021,0152779,"1,440.00",Revenue,Hallmark Catering,78575,,
Chorley Borough Council,http://statistics.data.gov.uk/id/local-authority/30UE,Central Support Services,1009,Policy & Governance,HR Recruitment - Advertising,15300,Indirect Employee Expenses,5002,Recruitment fees for NAME REDACTED,22/01/2021,0152328,"2,788.28",Revenue,Higher People Ltd,81411,,
Chorley Borough Council,http://statistics.data.gov.uk/id/local-authority/30UE,Central Support Services,1009,Early Intervention,Core Funding Grants,40133,Grants and Subscriptions,5031,Small community grant funding,15/01/2021,0152223,494.00,Revenue,Hillside Methodist Church,18468,,
Chorley Borough Council,http://statistics.data.gov.uk/id/local-authority/30UE,Service Management & Support,1009,Policy & Governance,Car Leasing Payment,14100,Direct Employee Expenses,5001,"Driver: NAME REDACTED Mitsubishi Outlander - 2.4 PHEV Dynamic 5dr Amethyst Black, Type 2-to-Type 1 charging cable",27/01/2021,0152733,"3,821.14",Revenue,Hitachi Capital Vehicle Solutions,80629,,
Chorley Borough Council,http://statistics.data.gov.uk/id/local-authority/30UE,Service Management & Support,1009,Policy & Governance,Car Leasing Payment,14100,Direct Employee Expenses,5001,VAT,27/01/2021,0152733,357.87,Revenue,Hitachi Capital Vehicle Solutions,80629,,
Chorley Borough Council,http://statistics.data.gov.uk/id/local-authority/30UE,Control Accounts,Control,Policy & Governance,Manual Control Account,00001,Balance Sheet,Balance,- VAT,27/01/2021,0152733,-357.87,Revenue,Hitachi Capital Vehicle Solutions,80629,,
Chorley Borough Council,http://statistics.data.gov.uk/id/local-authority/30UE,Corporate Management,1008,Customer & Digital,Miscellaneous Expenses,40200,Miscellaneous Expenses,5034,Dell servers 2 x power edge R630with intel xeon CPU E5 2683 v4@ 2.10GHz and 640GB ram VM ware VSAN 2 host with 2 CPU,06/01/2021,0150214,"34,702.00",Revenue,Hybrit LLP,77925,,
Chorley Borough Council,http://statistics.data.gov.uk/id/local-authority/30UE,Central Support Services,1009,Customer & Digital,Computer Equipment-Purchase,40098,Communication and Computing,5028,MICROSOFT SURFACE GO 2 TABLET - 26.7 CM (10.5``) - 8 GB RAM - 4G - PLATINUM - INTEL CORE M 8TH GEN M3-8100Y ,06/01/2021,0150995,655.00,Revenue,Hybrit LLP,77925,,
Chorley Borough Council,http://statistics.data.gov.uk/id/local-authority/30UE,Central Support Services,1009,Customer & Digital,Telephones - Other,40085,Communication and Computing,5028,Hybrit SIP charges Nov 20,13/01/2021,0152110,585.00,Revenue,Hybrit LLP,77925,,
Chorley Borough Council,http://statistics.data.gov.uk/id/local-authority/30UE,Central Support Services,1009,Customer & Digital,Telephones - Other,40085,Communication and Computing,5028,Hybrit SIP charges Dec 20,22/01/2021,0152586,585.00,Revenue,Hybrit LLP,77925,,
Chorley Borough Council,http://statistics.data.gov.uk/id/local-authority/30UE,Corporate Management,1008,Policy & Governance,Other Fees,40212,Miscellaneous Expenses,5034,Subsidy for the provision of a meals on wheels service in Chorley up to 6 December 2020,06/01/2021,0151493,"2,397.62",Revenue,I Care GB Ltd,77247,,
Chorley Borough Council,http://statistics.data.gov.uk/id/local-authority/30UE,Corporate Management,1008,Policy & Governance,Other Fees,40212,Miscellaneous Expenses,5034,Subsidy for the provision of a meals on wheels service in Chorley up to 03/01/21,22/01/2021,0152330,"2,261.33",Revenue,I Care GB Ltd,77247,,
Chorley Borough Council,http://statistics.data.gov.uk/id/local-authority/30UE,Elections,1012,Policy & Governance,Computer - Support Services,40111,Communication and Computing,5028,"IVR - Platinum service 2020 Canvass, including 2 reloads, Print and Send, and Telephone canvass",06/01/2021,0151337,542.57,Revenue,IDOX Software Limited,17542,,
Chorley Borough Council,http://statistics.data.gov.uk/id/local-authority/30UE,Control Accounts,Control,System,Manual Control Account,00001,Balance Sheet,Balance,,13/01/2021,0151918,678.80,Revenue,Inland Revenue REF REDACTED,17445,,
Chorley Borough Council,http://statistics.data.gov.uk/id/local-authority/30UE,Central Support Services,1009,Customer & Digital,Computer Equipment-Purchase,40098,Communication and Computing,5028,10.9-inch iPad Air Wi-Fi + Cellular 64GB Space Grey x18,06/01/2021,0150763,"7,057.96",Revenue,Insight Direct (UK) LTD,21768,,
Chorley Borough Council,http://statistics.data.gov.uk/id/local-authority/30UE,Central Support Services,1009,Customer & Digital,Professional Fees,14011,Direct Employee Expenses,5001,Small Organisation Membership 2020/21,22/01/2021,0152592,310.00,Revenue,Institute Of Licensing,16987,,
Chorley Borough Council,http://statistics.data.gov.uk/id/local-authority/30UE,Central Support Services,1009,Commercial Services,Planned Maintenance,20006,Repairs Maintenance & Alts,5005,Blanket order for rent of CAB/MP office,20/01/2021,0152351,"7,218.75",Revenue,J R Keys,17124,,
Chorley Borough Council,http://statistics.data.gov.uk/id/local-authority/30UE,Capital,Capital,Commercial Services,Main Contractor,03007,Capital Expenditure,Capital,1.5 days access hire at Astley Hall,13/01/2021,0152148,480.00,Capital,JJL Windows and Exterior Cleaning,80931,,
Chorley Borough Council,http://statistics.data.gov.uk/id/local-authority/30UE,Business Support,1095,Commercial Services,Tools & Equipment - Purchase,40003,"Equipment, Furniture & Materia",5023,PO raised for washing machine equipment at Primrose  Gardens from 20.07.2020 - 31.03.2021,08/01/2021,0152054,311.00,Revenue,JLA Total Care LTD,78420,,
Chorley Borough Council,http://statistics.data.gov.uk/id/local-authority/30UE,Business Support,1095,Commercial Services,Tools & Equipment - Purchase,40003,"Equipment, Furniture & Materia",5023,PO raised for washing machine equipment at Primrose  Gardens from 20.07.2020 - 31.03.2021,27/01/2021,0152716,311.00,Revenue,JLA Total Care LTD,78420,,
Chorley Borough Council,http://statistics.data.gov.uk/id/local-authority/30UE,Development Control,1091,Customer & Digital,Statutory Notices,40160,Miscellaneous Expenses,5034,Planning Public Notices to appear in the Chorley Guardian April 2020 to March 2021,13/01/2021,0151939,466.44,Revenue,JPI Media - Johnston Publishing Ltd,20072,,
Chorley Borough Council,http://statistics.data.gov.uk/id/local-authority/30UE,Capital,Capital,Commercial Services,Consultants Fees,03025,Capital Expenditure,Capital,MEP Consultancy Services RIBA Stages 1  3 for proposed development of Alker Lane,15/01/2021,0152248,"5,250.00",Capital,JRB Environmental Design Limited,80610,,
Chorley Borough Council,http://statistics.data.gov.uk/id/local-authority/30UE,Capital,Capital,Early Intervention,Grants,03002,Capital Expenditure,Capital,20/00026/dfg,13/01/2021,0152237,"2,610.00",Capital,K Berry Ltd,16421,,
Chorley Borough Council,http://statistics.data.gov.uk/id/local-authority/30UE,Capital,Capital,Early Intervention,Grants,03002,Capital Expenditure,Capital,20/00103/dfg,13/01/2021,0152238,"6,267.00",Capital,K Berry Ltd,16421,,
Chorley Borough Council,http://statistics.data.gov.uk/id/local-authority/30UE,Capital,Capital,Early Intervention,Grants,03002,Capital Expenditure,Capital,ADDRESS REDACTED,20/01/2021,0152352,"4,705.00",Capital,K Berry Ltd,16421,,
Chorley Borough Council,http://statistics.data.gov.uk/id/local-authority/30UE,Capital,Capital,Early Intervention,Grants,03002,Capital Expenditure,Capital,ADDRESS REDACTED,20/01/2021,0152353,"2,160.00",Capital,K Berry Ltd,16421,,
Chorley Borough Council,http://statistics.data.gov.uk/id/local-authority/30UE,Capital,Capital,Commercial Services,Main Contractor,03007,Capital Expenditure,Capital,"Emergency Lighting Installation Work - Quo/1527758 Approved by NAME REDACTED Isolate, disconnect and remove existing ",20/01/2021,0152354,"8,426.66",Capital,KDE Limited,78418,,
Chorley Borough Council,http://statistics.data.gov.uk/id/local-authority/30UE,Capital,Capital,Commercial Services,Main Contractor,03007,Capital Expenditure,Capital,"All Season Issued by NAME REDACTED, approved by NAME REDACTED To attend to site and were shown to jacuzzi and ",20/01/2021,0152415,585.60,Capital,KDE Limited,78418,,
Chorley Borough Council,http://statistics.data.gov.uk/id/local-authority/30UE,Capital,Capital,Commercial Services,Main Contractor,03007,Capital Expenditure,Capital,"Brinscall Swimming Pool Works issued by NAME REDACTED and approved by NAME REDACTED To attend to isolate, ",20/01/2021,0152417,354.44,Capital,KDE Limited,78418,,
Chorley Borough Council,http://statistics.data.gov.uk/id/local-authority/30UE,Capital,Capital,Commercial Services,Main Contractor,03007,Capital Expenditure,Capital,Chorley Leisure Centres electrical repair works Quote - QUO/1527457,20/01/2021,0152418,"1,362.40",Capital,KDE Limited,78418,,
Chorley Borough Council,http://statistics.data.gov.uk/id/local-authority/30UE,Central Support Services,1009,Policy & Governance,Professional Fees,14011,Direct Employee Expenses,5001,"Fixes and maintenance work for various Council wordpress websites such as checkoutchorley.com, chorleyflowershow.com etc ",13/01/2021,0152080,554.00,Revenue,Keiron Peel,81218,,
Chorley Borough Council,http://statistics.data.gov.uk/id/local-authority/30UE,Homelessness,1075,Early Intervention,External Contractor,40198,Miscellaneous Expenses,5034,"Provision of Young People`s Housing Drop in and Mediation Service 9 hours Weekly - Monday, Wednesday and Friday afternoons",06/01/2021,0147693,"3,750.00",Revenue,Key,61252,,
Chorley Borough Council,http://statistics.data.gov.uk/id/local-authority/30UE,Homelessness,1075,Early Intervention,External Contractor,40198,Miscellaneous Expenses,5034,"Provision of Young People`s Housing Drop in and Mediation Service 9 hours Weekly - Monday, Wednesday and Friday afternoons",06/01/2021,0149734,"3,750.00",Revenue,Key,61252,,
Chorley Borough Council,http://statistics.data.gov.uk/id/local-authority/30UE,Homelessness,1075,Early Intervention,External Contractor,40198,Miscellaneous Expenses,5034,"Provision of Young People`s Housing Drop in and Mediation Service 9 hours Weekly - Monday, Wednesday and Friday afternoons",15/01/2021,0151940,"3,750.00",Revenue,Key,61252,,
Chorley Borough Council,http://statistics.data.gov.uk/id/local-authority/30UE,Control Accounts,Control,Policy & Governance,General Balances,00100,Balance Sheet,Balance,Monthly Deds from Expenses,13/01/2021,0152213,"1,422.47",Revenue,Labour Councillors Association,17577,,
Chorley Borough Council,http://statistics.data.gov.uk/id/local-authority/30UE,Control Accounts,Control,Policy & Governance,General Balances,00100,Balance Sheet,Balance,Deds from Salary,22/01/2021,0152603,"1,422.47",Revenue,Labour Councillors Association,17577,,
Chorley Borough Council,http://statistics.data.gov.uk/id/local-authority/30UE,Central Support Services,1009,Commercial Services,Asset Maintenance Fund,20012,Repairs Maintenance & Alts,5005,Clearance of ADDRESS REDACTED,20/01/2021,0152420,425.00,Revenue,Lancashire Clearance Services Ltd,79462,,
Chorley Borough Council,http://statistics.data.gov.uk/id/local-authority/30UE,Business Support,1095,Commercial Services,Refuse Collection,20037,Cleaning and Domestic Supplies,5012,Clearance works at  ADDRESS REDACTED,20/01/2021,0152421,395.00,Revenue,Lancashire Clearance Services Ltd,79462,,
Chorley Borough Council,http://statistics.data.gov.uk/id/local-authority/30UE,Capital,Capital,Early Intervention,Grants,03002,Capital Expenditure,Capital,ADDRESS REDACTED,06/01/2021,0151354,"3,803.00",Capital,Lancashire County Council,17758,,
Chorley Borough Council,http://statistics.data.gov.uk/id/local-authority/30UE,Capital,Capital,Early Intervention,Other Legal Fees,03020,Capital Expenditure,Capital,"FILE REF - LSG4/KH/894.12375 Section 278 Agreement West Way, Astley Village - Chorley Borough (894.12375)",15/01/2021,0151955,"1,375.00",Capital,Lancashire County Council,17758,,
Chorley Borough Council,http://statistics.data.gov.uk/id/local-authority/30UE,Capital,Capital,Early Intervention,Grants,03002,Capital Expenditure,Capital,ADDRESS REDACTED,20/01/2021,0152374,"3,350.00",Capital,Lancashire County Council,17758,,
Chorley Borough Council,http://statistics.data.gov.uk/id/local-authority/30UE,Capital,Capital,Early Intervention,Grants,03002,Capital Expenditure,Capital,ADDRESS REDACTED,20/01/2021,0152375,"6,299.00",Capital,Lancashire County Council,17758,,
Chorley Borough Council,http://statistics.data.gov.uk/id/local-authority/30UE,Capital,Capital,Commercial Services,Main Contractor,03007,Capital Expenditure,Capital,All Seasons Internal plant room hot water calorifier works s quoted to NAME REDACTED,13/01/2021,0152169,"3,954.50",Capital,Lancashire Gas Services Ltd,78192,,
Chorley Borough Council,http://statistics.data.gov.uk/id/local-authority/30UE,Capital,Capital,Commercial Services,Main Contractor,03007,Capital Expenditure,Capital,General repair works to boilers and pumps and all leisure centres agreed with NAMES REDACTED approved NAME REDACTED,13/01/2021,0152170,901.75,Capital,Lancashire Gas Services Ltd,78192,,
Chorley Borough Council,http://statistics.data.gov.uk/id/local-authority/30UE,Capital,Capital,Commercial Services,Main Contractor,03007,Capital Expenditure,Capital,General repair works to boilers and pumps and all leisure centres agreed with NAMES REDACTED approved NAME REDACTED,13/01/2021,0152171,304.00,Capital,Lancashire Gas Services Ltd,78192,,
Chorley Borough Council,http://statistics.data.gov.uk/id/local-authority/30UE,Capital,Capital,Commercial Services,Main Contractor,03007,Capital Expenditure,Capital,Materials,13/01/2021,0152171,252.55,Capital,Lancashire Gas Services Ltd,78192,,
Chorley Borough Council,http://statistics.data.gov.uk/id/local-authority/30UE,Capital,Capital,Commercial Services,Main Contractor,03007,Capital Expenditure,Capital,General repair works to boilers and pumps and all leisure centres agreed with NAMES REDACTED approved NAME REDACTED,13/01/2021,0152173,285.00,Capital,Lancashire Gas Services Ltd,78192,,
Chorley Borough Council,http://statistics.data.gov.uk/id/local-authority/30UE,Capital,Capital,Commercial Services,Main Contractor,03007,Capital Expenditure,Capital,General repair works to boilers and pumps and all leisure centres agreed with NAMES REDACTED approved NAME REDACTED,13/01/2021,0152174,985.25,Capital,Lancashire Gas Services Ltd,78192,,
Chorley Borough Council,http://statistics.data.gov.uk/id/local-authority/30UE,Capital,Capital,Commercial Services,Main Contractor,03007,Capital Expenditure,Capital,General repair works to boilers and pumps and all leisure centres agreed with NAMES REDACTED approved NAME REDACTED,13/01/2021,0152175,"2,851.25",Capital,Lancashire Gas Services Ltd,78192,,
Chorley Borough Council,http://statistics.data.gov.uk/id/local-authority/30UE,Capital,Capital,Commercial Services,Main Contractor,03007,Capital Expenditure,Capital,General repair works to boilers and pumps and all leisure centres agreed with NAMES REDACTED approved NAME REDACTED,13/01/2021,0152176,969.00,Capital,Lancashire Gas Services Ltd,78192,,
Chorley Borough Council,http://statistics.data.gov.uk/id/local-authority/30UE,Capital,Capital,Commercial Services,Main Contractor,03007,Capital Expenditure,Capital,Materials,13/01/2021,0152176,"4,634.25",Capital,Lancashire Gas Services Ltd,78192,,
Chorley Borough Council,http://statistics.data.gov.uk/id/local-authority/30UE,Capital,Capital,Commercial Services,Main Contractor,03007,Capital Expenditure,Capital,General repair works to boilers and pumps and all leisure centres agreed with NAMES REDACTED approved NAME REDACTED,13/01/2021,0152177,768.00,Capital,Lancashire Gas Services Ltd,78192,,
Chorley Borough Council,http://statistics.data.gov.uk/id/local-authority/30UE,Capital,Capital,Commercial Services,Main Contractor,03007,Capital Expenditure,Capital,General boiler and pump repairs at leisure centres works agreed by NAME REDACTED,13/01/2021,0152276,171.00,Capital,Lancashire Gas Services Ltd,78192,,
Chorley Borough Council,http://statistics.data.gov.uk/id/local-authority/30UE,Capital,Capital,Commercial Services,Main Contractor,03007,Capital Expenditure,Capital,Materials,13/01/2021,0152276,91.81,Capital,Lancashire Gas Services Ltd,78192,,
Chorley Borough Council,http://statistics.data.gov.uk/id/local-authority/30UE,Central Support Services,1009,Commercial Services,General Repairs - Reactive,20004,Repairs Maintenance & Alts,5005,Reactive blanket,13/01/2021,0152291,738.45,Revenue,Lancashire Gas Services Ltd,78192,,
Chorley Borough Council,http://statistics.data.gov.uk/id/local-authority/30UE,Unapportionable Central OHeads,1009,Commercial Services,General Repairs - Reactive,20004,Repairs Maintenance & Alts,5005,Reactive blanket,13/01/2021,0152292,608.00,Revenue,Lancashire Gas Services Ltd,78192,,
Chorley Borough Council,http://statistics.data.gov.uk/id/local-authority/30UE,Corporate Management,1008,Commercial Services,Miscellaneous Expenses,40200,Miscellaneous Expenses,5034,Make and install Perspex screens for reception at DOP,20/01/2021,0152414,732.50,Revenue,Lancashire Gas Services Ltd,78192,,
Chorley Borough Council,http://statistics.data.gov.uk/id/local-authority/30UE,Capital,Capital,Commercial Services,Main Contractor,03007,Capital Expenditure,Capital,All Seasons Leisure Centre - QUO00562 As approved by NAMES REDACTED Plate heat exchanger - Quote to attend site and ,20/01/2021,0152491,"31,841.00",Capital,Lancashire Gas Services Ltd,78192,,
Chorley Borough Council,http://statistics.data.gov.uk/id/local-authority/30UE,Capital,Capital,Commercial Services,Main Contractor,03007,Capital Expenditure,Capital,Small pool pump - Quote to supply and install 1 x new Calpeda pump to replace the existing pump thats beyond repair.,20/01/2021,0152492,"1,467.70",Capital,Lancashire Gas Services Ltd,78192,,
Chorley Borough Council,http://statistics.data.gov.uk/id/local-authority/30UE,Central Support Services,1009,Commercial Services,Asset Maintenance Fund,20012,Repairs Maintenance & Alts,5005,Refugee Reactive,20/01/2021,0152493,470.29,Revenue,Lancashire Gas Services Ltd,78192,,
Chorley Borough Council,http://statistics.data.gov.uk/id/local-authority/30UE,Unapportionable Central OHeads,1009,Commercial Services,General Repairs - Reactive,20004,Repairs Maintenance & Alts,5005,Reactive blanket,20/01/2021,0152496,626.50,Revenue,Lancashire Gas Services Ltd,78192,,
Chorley Borough Council,http://statistics.data.gov.uk/id/local-authority/30UE,Capital,Capital,Commercial Services,Main Contractor,03007,Capital Expenditure,Capital,All Seasons Leisure Centre QUO00602 Approved by NAMES REDACTED hot water pump quote - Quote to attend site to replace ,20/01/2021,0152524,"1,486.05",Capital,Lancashire Gas Services Ltd,78192,,
Chorley Borough Council,http://statistics.data.gov.uk/id/local-authority/30UE,Recreation & Sport,1037,Commercial Services,General Repairs - Reactive,20004,Repairs Maintenance & Alts,5005,All Seasons Pressure unit in pool plant room keeps going to low voltage,22/01/2021,0152613,390.30,Revenue,Lancashire Gas Services Ltd,78192,,
Chorley Borough Council,http://statistics.data.gov.uk/id/local-authority/30UE,Capital,Capital,Commercial Services,Main Contractor,03007,Capital Expenditure,Capital,"All Seasons AHU Repairs Supply and install 1 new electric motor, 1 new damper motor, 1 new duct mounted temperature sensor",22/01/2021,0152614,"5,276.30",Capital,Lancashire Gas Services Ltd,78192,,
Chorley Borough Council,http://statistics.data.gov.uk/id/local-authority/30UE,Capital,Capital,Commercial Services,Main Contractor,03007,Capital Expenditure,Capital,All Seasons Service inspection to the 4 high level heaters in the sports hall Also to include basket ball nets pully system ,22/01/2021,0152619,"1,756.00",Capital,Lancashire Gas Services Ltd,78192,,
Chorley Borough Council,http://statistics.data.gov.uk/id/local-authority/30UE,Capital,Capital,Commercial Services,Main Contractor,03007,Capital Expenditure,Capital,"All Seasons Repair, refit, replace frost lagging covers on all relevant pipework in cold water tank room at rear of building",27/01/2021,0152638,648.43,Capital,Lancashire Gas Services Ltd,78192,,
Chorley Borough Council,http://statistics.data.gov.uk/id/local-authority/30UE,Recreation & Sport,1037,Early Intervention,Consultants` Fees,40077,Services,5027,High Level VAT advise outsourced Leisure Management,27/01/2021,0151948,"3,360.00",Revenue,LAVAT Consulting Ltd,76942,,
Chorley Borough Council,http://statistics.data.gov.uk/id/local-authority/30UE,Unapportionable Central OHeads,1009,Policy & Governance,Car Leasing Payment,14100,Direct Employee Expenses,5001,VIN REDACTED NAME REDACTED,27/01/2021,0152732,"2,650.80",Revenue,LeasePlan UK Ltd T/A Automotive Leasing,65197,,
Chorley Borough Council,http://statistics.data.gov.uk/id/local-authority/30UE,Unapportionable Central OHeads,1009,Policy & Governance,Car Leasing Payment,14100,Direct Employee Expenses,5001,VAT,27/01/2021,0152732,237.88,Revenue,LeasePlan UK Ltd T/A Automotive Leasing,65197,,
Chorley Borough Council,http://statistics.data.gov.uk/id/local-authority/30UE,Control Accounts,Control,Policy & Governance,Manual Control Account,00001,Balance Sheet,Balance,- VAT,27/01/2021,0152732,-237.88,Revenue,LeasePlan UK Ltd T/A Automotive Leasing,65197,,
Chorley Borough Council,http://statistics.data.gov.uk/id/local-authority/30UE,Recreation & Sport,1037,Early Intervention,Miscellaneous Expenses,40200,Miscellaneous Expenses,5034,LES MILLS PLUS PARTNERSHIP FEE DECEMBER 2020 - NOVEMBER 2021,27/01/2021,0151662,"4,380.00",Revenue,Les Mills Fitness UK Ltd,81122,,
Chorley Borough Council,http://statistics.data.gov.uk/id/local-authority/30UE,Homelessness,1075,Policy & Governance,Car Leasing Payment,14100,Direct Employee Expenses,5001,"Driver: NAME REDACTED Peugeot 2008 Estate - 1.2 PureTech Allure Premium 5dr (SUV) Pearl White 3 Years 12,000 miles P/A ",13/01/2021,0152014,"2,828.28",Revenue,Lex Autolease Ltd,70682,,
Chorley Borough Council,http://statistics.data.gov.uk/id/local-authority/30UE,Homelessness,1075,Policy & Governance,Car Leasing Payment,14100,Direct Employee Expenses,5001,vat,13/01/2021,0152014,247.78,Revenue,Lex Autolease Ltd,70682,,
Chorley Borough Council,http://statistics.data.gov.uk/id/local-authority/30UE,Control Accounts,Control,Policy & Governance,Manual Control Account,00001,Balance Sheet,Balance,-vat,13/01/2021,0152014,-247.78,Revenue,Lex Autolease Ltd,70682,,
Chorley Borough Council,http://statistics.data.gov.uk/id/local-authority/30UE,Capital,Capital,Commercial Services,Main Contractor,03007,Capital Expenditure,Capital,Project management services for Astley Hall Restoration project,20/01/2021,0152323,"2,186.00",Capital,Linchpin Ltd,80779,,
Chorley Borough Council,http://statistics.data.gov.uk/id/local-authority/30UE,Capital,Capital,Commercial Services,Main Contractor,03007,Capital Expenditure,Capital,Project management services for Astley Hall Restoration project,20/01/2021,0152355,"2,186.00",Capital,Linchpin Ltd,80779,,
Chorley Borough Council,http://statistics.data.gov.uk/id/local-authority/30UE,Central Support Services,1009,Policy & Governance,Car Leasing Payment,14100,Direct Employee Expenses,5001,VIN REDACTED NAME REDACTED,20/01/2021,0152300,"2,674.56",Revenue,Lookers Leasing Limited,78157,,
Chorley Borough Council,http://statistics.data.gov.uk/id/local-authority/30UE,Central Support Services,1009,Policy & Governance,Car Leasing Payment,14100,Direct Employee Expenses,5001,VAT,20/01/2021,0152300,237.56,Revenue,Lookers Leasing Limited,78157,,
Chorley Borough Council,http://statistics.data.gov.uk/id/local-authority/30UE,Control Accounts,Control,Policy & Governance,Manual Control Account,00001,Balance Sheet,Balance,- VAT,20/01/2021,0152300,-237.56,Revenue,Lookers Leasing Limited,78157,,
Chorley Borough Council,http://statistics.data.gov.uk/id/local-authority/30UE,Business Support,1095,Commercial Services,Stationery,40050,"Printing, Stationery & General",5026,Brother toner Black -  High capacity - DCP-L3550CDW -,13/01/2021,0152103,90.19,Revenue,Lyreco UK Ltd,17623,,
Chorley Borough Council,http://statistics.data.gov.uk/id/local-authority/30UE,Business Support,1095,Commercial Services,Stationery,40050,"Printing, Stationery & General",5026,BROTHER TN247C CYAN TONER 2.3K HIGH PRINT CAPACITY,13/01/2021,0152103,104.47,Revenue,Lyreco UK Ltd,17623,,
Chorley Borough Council,http://statistics.data.gov.uk/id/local-authority/30UE,Business Support,1095,Commercial Services,Stationery,40050,"Printing, Stationery & General",5026,BROTHER TN247M MAGENTA 2.3K HIGH PRINT CAPACITY,13/01/2021,0152103,104.47,Revenue,Lyreco UK Ltd,17623,,
Chorley Borough Council,http://statistics.data.gov.uk/id/local-authority/30UE,Business Support,1095,Commercial Services,Stationery,40050,"Printing, Stationery & General",5026,BROTHER TN247Y YELLOW 2.3K HIGH PRINT CAPACITY,13/01/2021,0152103,104.47,Revenue,Lyreco UK Ltd,17623,,
Chorley Borough Council,http://statistics.data.gov.uk/id/local-authority/30UE,Homelessness,1075,Commercial Services,Stationery,40050,"Printing, Stationery & General",5026,Brother Black Toner Cartridge TN247BK,13/01/2021,0152150,180.38,Revenue,Lyreco UK Ltd,17623,,
Chorley Borough Council,http://statistics.data.gov.uk/id/local-authority/30UE,Homelessness,1075,Commercial Services,Stationery,40050,"Printing, Stationery & General",5026,Brother Cyan Toner Cartridge TN247C,13/01/2021,0152150,104.47,Revenue,Lyreco UK Ltd,17623,,
Chorley Borough Council,http://statistics.data.gov.uk/id/local-authority/30UE,Homelessness,1075,Commercial Services,Stationery,40050,"Printing, Stationery & General",5026,Brother Magenta Toner Cartridge TN247M,13/01/2021,0152150,104.47,Revenue,Lyreco UK Ltd,17623,,
Chorley Borough Council,http://statistics.data.gov.uk/id/local-authority/30UE,Homelessness,1075,Commercial Services,Stationery,40050,"Printing, Stationery & General",5026,Brother Yellow Toner Cartridge TN247Y,13/01/2021,0152150,104.47,Revenue,Lyreco UK Ltd,17623,,
Chorley Borough Council,http://statistics.data.gov.uk/id/local-authority/30UE,Service Management & Support,1009,Customer & Digital,Grounds Maintenance Contractor,20043,Grounds Maintenance Costs,5013,Walker Tree Services work completed in November,13/01/2021,0152254,"6,205.00",Revenue,M J Walker,62044,,
Chorley Borough Council,http://statistics.data.gov.uk/id/local-authority/30UE,Central Support Services,1009,Policy & Governance,Agency Staff,13000,Direct Employee Expenses,5001,NAME REDACTED,22/01/2021,0152373,471.25,Revenue,Matrix SCM Ltd,22128,,
Chorley Borough Council,http://statistics.data.gov.uk/id/local-authority/30UE,Unapportionable Central OHeads,1009,Policy & Governance,Agency Staff,13000,Direct Employee Expenses,5001,NAME REDACTED,27/01/2021,0152627,471.25,Revenue,Matrix SCM Ltd,22128,,
Chorley Borough Council,http://statistics.data.gov.uk/id/local-authority/30UE,Planning Policy,1092,Early Intervention,Professional Fees,40063,Services,5027,NAME REDACTED Judicial Review - drafting detailed grounds 11.08.20,15/01/2021,0152013,"1,000.00",Revenue,Matthew Henderson,77746,,
Chorley Borough Council,http://statistics.data.gov.uk/id/local-authority/30UE,Planning Policy,1092,Early Intervention,Professional Fees,40063,Services,5027,NAME REDACTED v Chorley Borough Council and Others - advising in conference and note on MOU2 04.09.20 and drafting ,15/01/2021,0152030,700.00,Revenue,Matthew Henderson,77746,,
Chorley Borough Council,http://statistics.data.gov.uk/id/local-authority/30UE,Central Support Services,1009,Policy & Governance,Core Funding Grants,40133,Grants and Subscriptions,5031,Small community grant funding,20/01/2021,0152220,335.00,Revenue,Mawdesley Bowling Club,22137,,
Chorley Borough Council,http://statistics.data.gov.uk/id/local-authority/30UE,Central Support Services,1009,Commercial Services,Planned Maintenance,20006,Repairs Maintenance & Alts,5005,Blanket PPM,13/01/2021,0152199,841.24,Revenue,Maxigiene Environmental Services Ltd,67160,,
Chorley Borough Council,http://statistics.data.gov.uk/id/local-authority/30UE,Capital,Capital,Commercial Services,Main Contractor,03007,Capital Expenditure,Capital,All Seasons - Approved by NAME REDACTED remedial works Extra work: New 24Litre expansion vessel fitted as agreed,20/01/2021,0152409,"1,390.00",Capital,Maxigiene Environmental Services Ltd,67160,,
Chorley Borough Council,http://statistics.data.gov.uk/id/local-authority/30UE,Capital,Capital,Commercial Services,Main Contractor,03007,Capital Expenditure,Capital,Clayton green - Approved by NAME REDACTED remedial works carried out at the site shown below as per quote ref. PM4332 ,20/01/2021,0152410,625.00,Capital,Maxigiene Environmental Services Ltd,67160,,
Chorley Borough Council,http://statistics.data.gov.uk/id/local-authority/30UE,Capital,Capital,Commercial Services,Main Contractor,03007,Capital Expenditure,Capital,Brinscall Baths - Approved by NAME REDACTED remedial works carried out at the site shown below as per quote ref. PM4339 ,20/01/2021,0152411,795.00,Capital,Maxigiene Environmental Services Ltd,67160,,
Chorley Borough Council,http://statistics.data.gov.uk/id/local-authority/30UE,Service Management & Support,1009,Customer & Digital,Maintenance Street Furniture,20055,Grounds Maintenance Costs,5013,2 x Carr Barn Brow T (symbol for cul de sac) 2 x Wood End Road 2 x The Hawthorns 2 x Martins Avenue Mendip Road Ashurst ,13/01/2021,0152055,680.32,Revenue,Midland Signs (Leicester) Ltd,16606,,
Chorley Borough Council,http://statistics.data.gov.uk/id/local-authority/30UE,Capital,Capital,Commercial Services,Consultants Fees,03025,Capital Expenditure,Capital,"Proposed Development, Tatton Recreation Ground, Chorley � Party Wall etc Act 1996 For the preparation of a Preliminary Party",15/01/2021,0149605,"1,734.00",Capital,Mike Scanlan,80412,,
Chorley Borough Council,http://statistics.data.gov.uk/id/local-authority/30UE,Capital,Capital,Early Intervention,Grants,03002,Capital Expenditure,Capital,ADDRESS REDACTED,06/01/2021,0151355,"3,926.98",Capital,Mint Northwest Ltd,65607,,
Chorley Borough Council,http://statistics.data.gov.uk/id/local-authority/30UE,Capital,Capital,Early Intervention,Grants,03002,Capital Expenditure,Capital,20/00173/dfg,13/01/2021,0152232,"3,668.86",Capital,Mint Northwest Ltd,65607,,
Chorley Borough Council,http://statistics.data.gov.uk/id/local-authority/30UE,Capital,Capital,Early Intervention,Grants,03002,Capital Expenditure,Capital,20/00009/cag,13/01/2021,0152233,"4,285.24",Capital,Mint Northwest Ltd,65607,,
Chorley Borough Council,http://statistics.data.gov.uk/id/local-authority/30UE,Capital,Capital,Early Intervention,Grants,03002,Capital Expenditure,Capital,20/00174/cag,13/01/2021,0152246,"5,217.40",Capital,Mint Northwest Ltd,65607,,
Chorley Borough Council,http://statistics.data.gov.uk/id/local-authority/30UE,Business Support,1095,Early Intervention,Planned Maintenance,20006,Repairs Maintenance & Alts,5005,ref 3831,06/01/2021,0151932,297.00,Revenue,Mobility Care Services,70841,,
Chorley Borough Council,http://statistics.data.gov.uk/id/local-authority/30UE,Business Support,1095,Early Intervention,Planned Maintenance,20006,Repairs Maintenance & Alts,5005,ref4109,06/01/2021,0151932,60.00,Revenue,Mobility Care Services,70841,,
Chorley Borough Council,http://statistics.data.gov.uk/id/local-authority/30UE,Business Support,1095,Commercial Services,Security Service,40062,Services,5027,To provide evening Site Security Services at Market Walk Shopping Centre from 5pm until midnight 7 days a week. ,06/01/2021,0151233,526.75,Revenue,New Concept Security NW Ltd T/A New Concept Goup,80488,,
Chorley Borough Council,http://statistics.data.gov.uk/id/local-authority/30UE,Business Support,1095,Commercial Services,Security Service,40062,Services,5027,To provide evening Site Security Services at Market Walk Shopping Centre from 5pm until midnight 7 days a week. ,13/01/2021,0151902,526.75,Revenue,New Concept Security NW Ltd T/A New Concept Goup,80488,,
Chorley Borough Council,http://statistics.data.gov.uk/id/local-authority/30UE,Business Support,1095,Commercial Services,Security Service,40062,Services,5027,To provide evening Site Security Services at Market Walk Shopping Centre from 5pm until midnight 7 days a week. ,13/01/2021,0151952,489.09,Revenue,New Concept Security NW Ltd T/A New Concept Goup,80488,,
Chorley Borough Council,http://statistics.data.gov.uk/id/local-authority/30UE,Business Support,1095,Commercial Services,Security Service,40062,Services,5027,To provide evening Site Security Services at Market Walk Shopping Centre from 5pm until midnight 7 days a week. ,13/01/2021,0151995,564.41,Revenue,New Concept Security NW Ltd T/A New Concept Goup,80488,,
Chorley Borough Council,http://statistics.data.gov.uk/id/local-authority/30UE,Business Support,1095,Commercial Services,Security Service,40062,Services,5027,To provide evening Site Security Services at Market Walk Shopping Centre from 5pm until midnight 7 days a week. ,27/01/2021,0152697,526.75,Revenue,New Concept Security NW Ltd T/A New Concept Goup,80488,,
Chorley Borough Council,http://statistics.data.gov.uk/id/local-authority/30UE,Corporate Management,1008,Customer & Digital,"Hackney Badges, Plates Etc.",40023,"Equipment, Furniture & Materia",5023,Private Hire door signs to include tamper evident hologram and cover x 40 @ 6.88 each,20/01/2021,0152106,275.20,Revenue,NewAuto Ltd t/a MOGO UK,17187,,
Chorley Borough Council,http://statistics.data.gov.uk/id/local-authority/30UE,Corporate Management,1008,Customer & Digital,"Hackney Badges, Plates Etc.",40023,"Equipment, Furniture & Materia",5023,Post and packaging,20/01/2021,0152106,14.90,Revenue,NewAuto Ltd t/a MOGO UK,17187,,
Chorley Borough Council,http://statistics.data.gov.uk/id/local-authority/30UE,Capital,Capital,Commercial Services,Main Contractor,03007,Capital Expenditure,Capital,Portfolio Valuation - NAME REDACTED,20/01/2021,0152331,"3,683.00",Capital,Nolan Redshaw,81192,,
Chorley Borough Council,http://statistics.data.gov.uk/id/local-authority/30UE,Economic Development,1096,Commercial Services,General Subscriptions,40146,Grants and Subscriptions,5031,"Subscription, North and Western  Lancashire Chamber of Commerce. Year  to 11/11/2021 Chamber Invoice: 85572",22/01/2021,0152463,300.00,Revenue,North & Western Lancs Chamber Of Commerce,16786,,
Chorley Borough Council,http://statistics.data.gov.uk/id/local-authority/30UE,Capital,Capital,Customer & Digital,Main Contractor,03007,Capital Expenditure,Capital,2 x cisco SG300-28 network switch 3 x cisco fibre SFP OM3 LC to LC duplex fibre patch cable  3 x 15U 600mm Deep Data ,06/01/2021,0151642,896.00,Capital,North VS Limited,78379,,
Chorley Borough Council,http://statistics.data.gov.uk/id/local-authority/30UE,Capital,Capital,Policy & Governance,Other Contractor,03012,Capital Expenditure,Capital,Your ref - AHM/KC As per quote arranged between NAMES REDACTED regarding Astley Hall shop EPOS till. Plus card reader.,06/01/2021,0151648,"2,425.00",Capital,North West Business Machines Limited,80971,,
Chorley Borough Council,http://statistics.data.gov.uk/id/local-authority/30UE,Central Support Services,1009,Commercial Services,Electricity,20013,Energy Costs,5006,"CIVIC OFFICES, UNION STREET",13/01/2021,0151933,"3,476.15",Revenue,Npower Commercial Gas,16814,,
Chorley Borough Council,http://statistics.data.gov.uk/id/local-authority/30UE,Central Support Services,1009,Commercial Services,Electricity,20013,Energy Costs,5006,BENGAL STREET DEPOT,13/01/2021,0151933,"1,413.11",Revenue,Npower Commercial Gas,16814,,
Chorley Borough Council,http://statistics.data.gov.uk/id/local-authority/30UE,Central Support Services,1009,Commercial Services,Electricity,20013,Energy Costs,5006,HARPERS LANE RECREAT,13/01/2021,0151933,"2,265.94",Revenue,Npower Commercial Gas,16814,,
Chorley Borough Council,http://statistics.data.gov.uk/id/local-authority/30UE,Business Support,1095,Commercial Services,Electricity,20013,Energy Costs,5006,"LANDLORD, PRIMROSE GARDENS",13/01/2021,0151933,"1,164.48",Revenue,Npower Commercial Gas,16814,,
Chorley Borough Council,http://statistics.data.gov.uk/id/local-authority/30UE,Business Support,1095,Commercial Services,Electricity,20013,Energy Costs,5006,"STRAWBERRY FIELDS, DIGITAL HUB",13/01/2021,0151933,"4,132.22",Revenue,Npower Commercial Gas,16814,,
Chorley Borough Council,http://statistics.data.gov.uk/id/local-authority/30UE,Business Support,1095,Commercial Services,Electricity,20013,Energy Costs,5006,MARKET WALK EXTENSION,13/01/2021,0151933,410.21,Revenue,Npower Commercial Gas,16814,,
Chorley Borough Council,http://statistics.data.gov.uk/id/local-authority/30UE,Democratic Represent and  Mgnt,1007,Commercial Services,Electricity,20013,Energy Costs,5006,HARPERS LANE RECREAT,13/01/2021,0152112,33.69,Revenue,Npower Commercial Gas,16814,,
Chorley Borough Council,http://statistics.data.gov.uk/id/local-authority/30UE,Open Spaces,1038,Commercial Services,Electricity,20013,Energy Costs,5006,TATTON RECREATION GR,13/01/2021,0152112,12.27,Revenue,Npower Commercial Gas,16814,,
Chorley Borough Council,http://statistics.data.gov.uk/id/local-authority/30UE,Service Management & Support,1009,Commercial Services,Electricity,20013,Energy Costs,5006,GILLETT PLAYING FIEL,13/01/2021,0152112,7.07,Revenue,Npower Commercial Gas,16814,,
Chorley Borough Council,http://statistics.data.gov.uk/id/local-authority/30UE,Democratic Represent and  Mgnt,1007,Commercial Services,Electricity,20013,Energy Costs,5006,KING GEORGE V PLAYING FIELDS,13/01/2021,0152112,5.14,Revenue,Npower Commercial Gas,16814,,
Chorley Borough Council,http://statistics.data.gov.uk/id/local-authority/30UE,Service Management Support,1009,Commercial Services,Electricity,20013,Energy Costs,5006,ASTLEY HALL FARM HOU,13/01/2021,0152112,332.93,Revenue,Npower Commercial Gas,16814,,
Chorley Borough Council,http://statistics.data.gov.uk/id/local-authority/30UE,Democratic Represent and  Mgnt,1007,Commercial Services,Electricity,20013,Energy Costs,5006,ASTLEY HALL,13/01/2021,0152112,169.90,Revenue,Npower Commercial Gas,16814,,
Chorley Borough Council,http://statistics.data.gov.uk/id/local-authority/30UE,Recreation & Sport,1037,Commercial Services,Electricity,20013,Energy Costs,5006,EAVES GREEN COMMUNIT,13/01/2021,0152112,278.77,Revenue,Npower Commercial Gas,16814,,
Chorley Borough Council,http://statistics.data.gov.uk/id/local-authority/30UE,Community Development,1097,Commercial Services,Electricity,20013,Energy Costs,5006,FIRST FLOOR INFORMAT,13/01/2021,0152112,34.62,Revenue,Npower Commercial Gas,16814,,
Chorley Borough Council,http://statistics.data.gov.uk/id/local-authority/30UE,Community Development,1097,Commercial Services,Electricity,20013,Energy Costs,5006,TOP FLOOR INFORMATIO,13/01/2021,0152112,35.60,Revenue,Npower Commercial Gas,16814,,
Chorley Borough Council,http://statistics.data.gov.uk/id/local-authority/30UE,Community Development,1097,Commercial Services,Electricity,20013,Energy Costs,5006,GROUND FLOOR INFORMA,13/01/2021,0152112,32.31,Revenue,Npower Commercial Gas,16814,,
Chorley Borough Council,http://statistics.data.gov.uk/id/local-authority/30UE,Democratic Represent and  Mgnt,1007,Commercial Services,Electricity,20013,Energy Costs,5006,CORONATION RECREATIO,13/01/2021,0152112,50.47,Revenue,Npower Commercial Gas,16814,,
Chorley Borough Council,http://statistics.data.gov.uk/id/local-authority/30UE,Recreation & Sport,1037,Commercial Services,Electricity,20013,Energy Costs,5006,ASTLEY VILLAGE COMMU,13/01/2021,0152112,267.94,Revenue,Npower Commercial Gas,16814,,
Chorley Borough Council,http://statistics.data.gov.uk/id/local-authority/30UE,Democratic Represent and  Mgnt,1007,Commercial Services,Electricity,20013,Energy Costs,5006,ASTLEY HALL COACH HO,13/01/2021,0152112,875.24,Revenue,Npower Commercial Gas,16814,,
Chorley Borough Council,http://statistics.data.gov.uk/id/local-authority/30UE,Culture & Heritage,1036,Commercial Services,Electricity,20013,Energy Costs,5006,ASTLEY HALL COTTAGE,13/01/2021,0152112,65.67,Revenue,Npower Commercial Gas,16814,,
Chorley Borough Council,http://statistics.data.gov.uk/id/local-authority/30UE,Cemetery Cremation & Mortuary,1041,Commercial Services,Electricity,20013,Energy Costs,5006,CEMETERIES OFFICE,13/01/2021,0152112,208.33,Revenue,Npower Commercial Gas,16814,,
Chorley Borough Council,http://statistics.data.gov.uk/id/local-authority/30UE,Open Spaces,1038,Commercial Services,Electricity,20013,Energy Costs,5006,ASTLEY PARK PAVILION/CHANGING,13/01/2021,0152112,445.94,Revenue,Npower Commercial Gas,16814,,
Chorley Borough Council,http://statistics.data.gov.uk/id/local-authority/30UE,Economic Development,1096,Commercial Services,Electricity,20013,Energy Costs,5006,"MARKET COMPACTOR, RE",13/01/2021,0152112,25.47,Revenue,Npower Commercial Gas,16814,,
Chorley Borough Council,http://statistics.data.gov.uk/id/local-authority/30UE,Democratic Represent and  Mgnt,1007,Commercial Services,Electricity,20013,Energy Costs,5006,KING GEORGE V CHANGING ROOMS,13/01/2021,0152112,14.35,Revenue,Npower Commercial Gas,16814,,
Chorley Borough Council,http://statistics.data.gov.uk/id/local-authority/30UE,Homelessness,1075,Commercial Services,Electricity,20013,Energy Costs,5006,COTSWOLD HOUSE COMMU,13/01/2021,0152112,435.83,Revenue,Npower Commercial Gas,16814,,
Chorley Borough Council,http://statistics.data.gov.uk/id/local-authority/30UE,Homelessness,1075,Commercial Services,Electricity,20013,Energy Costs,5006,COTSWOLD HOUSE TWO S,13/01/2021,0152112,208.43,Revenue,Npower Commercial Gas,16814,,
Chorley Borough Council,http://statistics.data.gov.uk/id/local-authority/30UE,Homelessness,1075,Commercial Services,Electricity,20013,Energy Costs,5006,COTSWOLD HOUSE SINGL,13/01/2021,0152112,129.69,Revenue,Npower Commercial Gas,16814,,
Chorley Borough Council,http://statistics.data.gov.uk/id/local-authority/30UE,Business Support,1095,Commercial Services,Electricity,20013,Energy Costs,5006,LANDLORDS COMMUNAL A,13/01/2021,0152112,790.32,Revenue,Npower Commercial Gas,16814,,
Chorley Borough Council,http://statistics.data.gov.uk/id/local-authority/30UE,Recreation & Sport,1037,Commercial Services,Electricity,20013,Energy Costs,5006,BUTTERMERE COMMUNITY,13/01/2021,0152112,105.76,Revenue,Npower Commercial Gas,16814,,
Chorley Borough Council,http://statistics.data.gov.uk/id/local-authority/30UE,Recreation & Sport,1037,Commercial Services,Electricity,20013,Energy Costs,5006,LANCASTER WAY COMMUN,13/01/2021,0152112,180.89,Revenue,Npower Commercial Gas,16814,,
Chorley Borough Council,http://statistics.data.gov.uk/id/local-authority/30UE,Parking Services,1066,Commercial Services,Electricity,20013,Energy Costs,5006,CAR PARK UNION ST,13/01/2021,0152112,368.82,Revenue,Npower Commercial Gas,16814,,
Chorley Borough Council,http://statistics.data.gov.uk/id/local-authority/30UE,Parking Services,1066,Commercial Services,Electricity,20013,Energy Costs,5006,ARLEY STREET CAR PAR,13/01/2021,0152112,10.35,Revenue,Npower Commercial Gas,16814,,
Chorley Borough Council,http://statistics.data.gov.uk/id/local-authority/30UE,Parking Services,1066,Commercial Services,Electricity,20013,Energy Costs,5006,OAK HOUSE CAR PARK,13/01/2021,0152112,120.97,Revenue,Npower Commercial Gas,16814,,
Chorley Borough Council,http://statistics.data.gov.uk/id/local-authority/30UE,Parking Services,1066,Commercial Services,Electricity,20013,Energy Costs,5006,FRIDAY STREET,13/01/2021,0152112,314.42,Revenue,Npower Commercial Gas,16814,,
Chorley Borough Council,http://statistics.data.gov.uk/id/local-authority/30UE,Central Support Services,1009,Commercial Services,Electricity,20013,Energy Costs,5006,CCTV FEEDER PILLAR STEELEY LANE,13/01/2021,0152112,11.56,Revenue,Npower Commercial Gas,16814,,
Chorley Borough Council,http://statistics.data.gov.uk/id/local-authority/30UE,Democratic Represent and  Mgnt,1007,Commercial Services,Electricity,20013,Energy Costs,5006,RANGLETTS RECREATION,13/01/2021,0152112,25.50,Revenue,Npower Commercial Gas,16814,,
Chorley Borough Council,http://statistics.data.gov.uk/id/local-authority/30UE,Open Spaces,1038,Commercial Services,Electricity,20013,Energy Costs,5006,TATTON RECREATION GR,13/01/2021,0152197,13.28,Revenue,Npower Commercial Gas,16814,,
Chorley Borough Council,http://statistics.data.gov.uk/id/local-authority/30UE,Service Management & Support,1009,Commercial Services,Electricity,20013,Energy Costs,5006,GILLETT PLAYING FIEL,13/01/2021,0152197,7.33,Revenue,Npower Commercial Gas,16814,,
Chorley Borough Council,http://statistics.data.gov.uk/id/local-authority/30UE,Democratic Represent and  Mgnt,1007,Commercial Services,Electricity,20013,Energy Costs,5006,KING GEORGE V PLAYING FIELDS,13/01/2021,0152197,12.67,Revenue,Npower Commercial Gas,16814,,
Chorley Borough Council,http://statistics.data.gov.uk/id/local-authority/30UE,Community Development,1097,Commercial Services,Electricity,20013,Energy Costs,5006,FIRST FLOOR INFORMAT,13/01/2021,0152197,16.99,Revenue,Npower Commercial Gas,16814,,
Chorley Borough Council,http://statistics.data.gov.uk/id/local-authority/30UE,Community Development,1097,Commercial Services,Electricity,20013,Energy Costs,5006,TOP FLOOR INFORMATIO,13/01/2021,0152197,86.87,Revenue,Npower Commercial Gas,16814,,
Chorley Borough Council,http://statistics.data.gov.uk/id/local-authority/30UE,Democratic Represent and  Mgnt,1007,Commercial Services,Electricity,20013,Energy Costs,5006,ASTLEY HALL COACH HO,13/01/2021,0152197,"1,008.89",Revenue,Npower Commercial Gas,16814,,
Chorley Borough Council,http://statistics.data.gov.uk/id/local-authority/30UE,Culture & Heritage,1036,Commercial Services,Electricity,20013,Energy Costs,5006,ASTLEY HALL COTTAGE,13/01/2021,0152197,73.99,Revenue,Npower Commercial Gas,16814,,
Chorley Borough Council,http://statistics.data.gov.uk/id/local-authority/30UE,Homelessness,1075,Commercial Services,Electricity,20013,Energy Costs,5006,COTSWOLD HOUSE COMMUNAL ROOMS,13/01/2021,0152197,435.04,Revenue,Npower Commercial Gas,16814,,
Chorley Borough Council,http://statistics.data.gov.uk/id/local-authority/30UE,Homelessness,1075,Commercial Services,Electricity,20013,Energy Costs,5006,COTSWOLD HOUSE TWO STORY WING,13/01/2021,0152197,-78.47,Revenue,Npower Commercial Gas,16814,,
Chorley Borough Council,http://statistics.data.gov.uk/id/local-authority/30UE,Business Support,1095,Commercial Services,Electricity,20013,Energy Costs,5006,LANDLORDS COMMUNAL AREA,13/01/2021,0152197,832.67,Revenue,Npower Commercial Gas,16814,,
Chorley Borough Council,http://statistics.data.gov.uk/id/local-authority/30UE,Recreation & Sport,1037,Commercial Services,Electricity,20013,Energy Costs,5006,BUTTERMERE COMMUNITY,13/01/2021,0152197,103.92,Revenue,Npower Commercial Gas,16814,,
Chorley Borough Council,http://statistics.data.gov.uk/id/local-authority/30UE,Parking Services,1066,Commercial Services,Electricity,20013,Energy Costs,5006,CAR PARK UNION ST,13/01/2021,0152197,444.36,Revenue,Npower Commercial Gas,16814,,
Chorley Borough Council,http://statistics.data.gov.uk/id/local-authority/30UE,Parking Services,1066,Commercial Services,Electricity,20013,Energy Costs,5006,ARLEY STREET CAR PAR,13/01/2021,0152197,8.84,Revenue,Npower Commercial Gas,16814,,
Chorley Borough Council,http://statistics.data.gov.uk/id/local-authority/30UE,Parking Services,1066,Commercial Services,Electricity,20013,Energy Costs,5006,OAK HOUSE CAR PARK,13/01/2021,0152197,136.78,Revenue,Npower Commercial Gas,16814,,
Chorley Borough Council,http://statistics.data.gov.uk/id/local-authority/30UE,Parking Services,1066,Commercial Services,Electricity,20013,Energy Costs,5006,FRIDAY STREET,13/01/2021,0152197,305.28,Revenue,Npower Commercial Gas,16814,,
Chorley Borough Council,http://statistics.data.gov.uk/id/local-authority/30UE,Central Support Services,1009,Commercial Services,Electricity,20013,Energy Costs,5006,CCTV FEEDER PILLAR STEELEY LANE,13/01/2021,0152197,11.52,Revenue,Npower Commercial Gas,16814,,
Chorley Borough Council,http://statistics.data.gov.uk/id/local-authority/30UE,Democratic Represent and  Mgnt,1007,Commercial Services,Electricity,20013,Energy Costs,5006,RANGLETTS RECREATION,13/01/2021,0152197,24.68,Revenue,Npower Commercial Gas,16814,,
Chorley Borough Council,http://statistics.data.gov.uk/id/local-authority/30UE,Central Support Services,1009,Commercial Services,Electricity,20013,Energy Costs,5006,"CCTV SPENDMORE LANE, BAKER ST JNCT",13/01/2021,0152197,4.73,Revenue,Npower Commercial Gas,16814,,
Chorley Borough Council,http://statistics.data.gov.uk/id/local-authority/30UE,Homelessness,1075,Commercial Services,Electricity,20013,Energy Costs,5006,COTSWOLD HOUSE SINGL,13/01/2021,0152197,123.44,Revenue,Npower Commercial Gas,16814,,
Chorley Borough Council,http://statistics.data.gov.uk/id/local-authority/30UE,Unapportionable Central OHeads,1009,Commercial Services,Electricity,20013,Energy Costs,5006,CIVIC OFFICES,22/01/2021,0152596,"3,535.95",Revenue,Npower Commercial Gas,16814,,
Chorley Borough Council,http://statistics.data.gov.uk/id/local-authority/30UE,Central Support Services,1009,Commercial Services,Electricity,20013,Energy Costs,5006,BENGALL STREET DEPOT,22/01/2021,0152596,"1,616.46",Revenue,Npower Commercial Gas,16814,,
Chorley Borough Council,http://statistics.data.gov.uk/id/local-authority/30UE,Unapportionable Central OHeads,1009,Commercial Services,Electricity,20013,Energy Costs,5006,TOWN HALL,22/01/2021,0152596,"2,381.67",Revenue,Npower Commercial Gas,16814,,
Chorley Borough Council,http://statistics.data.gov.uk/id/local-authority/30UE,Business Support,1095,Commercial Services,Electricity,20013,Energy Costs,5006,LANDLORD PRIMROSE GARDENS,22/01/2021,0152596,"1,436.78",Revenue,Npower Commercial Gas,16814,,
Chorley Borough Council,http://statistics.data.gov.uk/id/local-authority/30UE,Business Support,1095,Commercial Services,Electricity,20013,Energy Costs,5006,STRAWBERRY FIELDS DIGITAL HUB,22/01/2021,0152596,"5,203.87",Revenue,Npower Commercial Gas,16814,,
Chorley Borough Council,http://statistics.data.gov.uk/id/local-authority/30UE,Business Support,1095,Commercial Services,Electricity,20013,Energy Costs,5006,MARKET WALK EXTENSION,22/01/2021,0152596,529.38,Revenue,Npower Commercial Gas,16814,,
Chorley Borough Council,http://statistics.data.gov.uk/id/local-authority/30UE,Parking Services,1066,Commercial Services,External Contractors,50008,Private Contractors,5042,"Off street car park enforcement, cash collection, cash counting facilities, third party bulk cash collections for 01.11.20 - 31.03.21",06/01/2021,0151973,"5,027.94",Revenue,NSL Limited,67253,,
Chorley Borough Council,http://statistics.data.gov.uk/id/local-authority/30UE,Service Management & Support,1009,Customer & Digital,Supplies-Grounds Maintenance,40025,"Equipment, Furniture & Materia",5023,Supply 2 park benches with 1 stainless steel plaque,27/01/2021,0152704,505.00,Revenue,Nuchoice Limited,75454,,
Chorley Borough Council,http://statistics.data.gov.uk/id/local-authority/30UE,Corporate Management,1008,Policy & Governance,Training Course Fees,17010,Indirect Employee Expenses,5002,OD Practitioner Essentials course,06/01/2021,0151490,"1,250.00",Revenue,Nwlaeo,17571,,
Chorley Borough Council,http://statistics.data.gov.uk/id/local-authority/30UE,Corporate Management,1008,Policy & Governance,Training Course Fees,17010,Indirect Employee Expenses,5002,Interview Training,15/01/2021,0151624,700.00,Revenue,Nwlaeo,17571,,
Chorley Borough Council,http://statistics.data.gov.uk/id/local-authority/30UE,Service Management & Support,1009,Customer & Digital,Supplies-Grounds Maintenance,40025,"Equipment, Furniture & Materia",5023,As Per invoice Number 20402,06/01/2021,0152015,250.40,Revenue,P D M Components,19204,,
Chorley Borough Council,http://statistics.data.gov.uk/id/local-authority/30UE,Service Management & Support,1009,Customer & Digital,Vehicles and Plant Maintenance,30045,Direct Transport Costs,5016,as per advice note 20328 dated 19/05/2020 various items required for workshop,06/01/2021,0152018,256.25,Revenue,P D M Components,19204,,
Chorley Borough Council,http://statistics.data.gov.uk/id/local-authority/30UE,Business Support,1095,Commercial Services,Grants To Other Organisations,40127,Grants and Subscriptions,5031,Shop Front Grant,13/01/2021,0152141,"5,887.50",Revenue,PANACHE LOUNGE LTD,81220,,
Chorley Borough Council,http://statistics.data.gov.uk/id/local-authority/30UE,Corporate Management,1008,Early Intervention,Miscellaneous Expenses,40200,Miscellaneous Expenses,5034,NAME REDACTED Hotel Fees Monday 8nd June to Sunday 14th June inclusive 7 nights ,15/01/2021,0151963,350.00,Revenue,Parr Hall Farm,76175,,
Chorley Borough Council,http://statistics.data.gov.uk/id/local-authority/30UE,Homelessness,1075,Commercial Services,Cleaning Materials,40019,"Equipment, Furniture & Materia",5023,AD104 Mini Jumbo Toilet Roll - x5 - 9.67 pack,27/01/2021,0152073,48.35,Revenue,Pattersons Holdings (Bristol),77537,,
Chorley Borough Council,http://statistics.data.gov.uk/id/local-authority/30UE,Homelessness,1075,Commercial Services,Cleaning Materials,40019,"Equipment, Furniture & Materia",5023,AE208 - White Luxury Interleaved Hand Towel - x2 - 17.80 case,27/01/2021,0152073,17.80,Revenue,Pattersons Holdings (Bristol),77537,,
Chorley Borough Council,http://statistics.data.gov.uk/id/local-authority/30UE,Homelessness,1075,Commercial Services,Cleaning Materials,40019,"Equipment, Furniture & Materia",5023,AF113 - Blue Roll - x6 - 7.77 pack,27/01/2021,0152073,46.62,Revenue,Pattersons Holdings (Bristol),77537,,
Chorley Borough Council,http://statistics.data.gov.uk/id/local-authority/30UE,Homelessness,1075,Commercial Services,Cleaning Materials,40019,"Equipment, Furniture & Materia",5023,BC017-5 - General purpose flora disinfectant - x2 - 1.53 each,27/01/2021,0152073,3.31,Revenue,Pattersons Holdings (Bristol),77537,,
Chorley Borough Council,http://statistics.data.gov.uk/id/local-authority/30UE,Homelessness,1075,Commercial Services,Cleaning Materials,40019,"Equipment, Furniture & Materia",5023,JH-00017 Kitchen cleaner sanitiser 5ltr - x2 - 4.20 each,27/01/2021,0152073,8.40,Revenue,Pattersons Holdings (Bristol),77537,,
Chorley Borough Council,http://statistics.data.gov.uk/id/local-authority/30UE,Homelessness,1075,Commercial Services,Cleaning Materials,40019,"Equipment, Furniture & Materia",5023,BG040-CR - Air Freshener - x6 - 0.90 each,27/01/2021,0152073,4.32,Revenue,Pattersons Holdings (Bristol),77537,,
Chorley Borough Council,http://statistics.data.gov.uk/id/local-authority/30UE,Homelessness,1075,Commercial Services,Cleaning Materials,40019,"Equipment, Furniture & Materia",5023,CG106-B/G/P/Y - 2 packs - 3.90 per pack,27/01/2021,0152073,31.20,Revenue,Pattersons Holdings (Bristol),77537,,
Chorley Borough Council,http://statistics.data.gov.uk/id/local-authority/30UE,Homelessness,1075,Commercial Services,Cleaning Materials,40019,"Equipment, Furniture & Materia",5023,CM180 - Refuse Sacks Heavy Duty - x4 - 12.57 box,27/01/2021,0152073,50.28,Revenue,Pattersons Holdings (Bristol),77537,,
Chorley Borough Council,http://statistics.data.gov.uk/id/local-authority/30UE,Homelessness,1075,Commercial Services,Cleaning Materials,40019,"Equipment, Furniture & Materia",5023,DG150-M - x3 boxes - 9.25 each,27/01/2021,0152073,27.75,Revenue,Pattersons Holdings (Bristol),77537,,
Chorley Borough Council,http://statistics.data.gov.uk/id/local-authority/30UE,Homelessness,1075,Commercial Services,Cleaning Materials,40019,"Equipment, Furniture & Materia",5023,HA015-R/B - Mop heads (red and blue) x 12 - 0.90 each,27/01/2021,0152073,21.60,Revenue,Pattersons Holdings (Bristol),77537,,
Chorley Borough Council,http://statistics.data.gov.uk/id/local-authority/30UE,Homelessness,1075,Commercial Services,Cleaning Materials,40019,"Equipment, Furniture & Materia",5023,HL008 - Green Contract Scouring Pad x2 pack - 1.14 per pack,27/01/2021,0152073,2.28,Revenue,Pattersons Holdings (Bristol),77537,,
Chorley Borough Council,http://statistics.data.gov.uk/id/local-authority/30UE,Homelessness,1075,Commercial Services,Cleaning Materials,40019,"Equipment, Furniture & Materia",5023,A8-9169W - Enclosed toilet brush and holder - x6 - 3.10 each,27/01/2021,0152073,18.60,Revenue,Pattersons Holdings (Bristol),77537,,
Chorley Borough Council,http://statistics.data.gov.uk/id/local-authority/30UE,Homelessness,1075,Commercial Services,Cleaning Materials,40019,"Equipment, Furniture & Materia",5023,NV-61410 - stainless steel egg cup x4 box - 0.42 each,27/01/2021,0152073,1.68,Revenue,Pattersons Holdings (Bristol),77537,,
Chorley Borough Council,http://statistics.data.gov.uk/id/local-authority/30UE,Homelessness,1075,Commercial Services,Cleaning Materials,40019,"Equipment, Furniture & Materia",5023,AP07894 - shower curtain - x6 - 3.47 each,27/01/2021,0152073,20.82,Revenue,Pattersons Holdings (Bristol),77537,,
Chorley Borough Council,http://statistics.data.gov.uk/id/local-authority/30UE,Homelessness,1075,Commercial Services,Cleaning Materials,40019,"Equipment, Furniture & Materia",5023,BP012 - laundry powder - x1 - 9.44 box,27/01/2021,0152073,7.55,Revenue,Pattersons Holdings (Bristol),77537,,
Chorley Borough Council,http://statistics.data.gov.uk/id/local-authority/30UE,Unapportionable Central OHeads,1009,Policy & Governance,HR Recruitment - Advertising,15300,Indirect Employee Expenses,5002,Recruitment of the Director of Finance,06/01/2021,0151133,"4,250.00",Revenue,Penna Plc,77833,,
Chorley Borough Council,http://statistics.data.gov.uk/id/local-authority/30UE,Central Support Services,1009,Policy & Governance,HR Recruitment - Advertising,15300,Indirect Employee Expenses,5002,Recruitment of the Director of Finance,15/01/2021,0152047,"4,250.00",Revenue,Penna Plc,77833,,
Chorley Borough Council,http://statistics.data.gov.uk/id/local-authority/30UE,Central Support Services,1009,Customer & Digital,Computer - Support Services,40111,Communication and Computing,5028,"Annual PSN ITHC, 7 days @ 700",06/01/2021,0149757,"4,900.00",Revenue,Pentest People,80896,,
Chorley Borough Council,http://statistics.data.gov.uk/id/local-authority/30UE,Central Support Services,1009,Customer & Digital,Computer - Support Services,40111,Communication and Computing,5028,2 x days weekend work to complete Pen Test scanning,20/01/2021,0152312,"1,900.00",Revenue,Pentest People,80896,,
Chorley Borough Council,http://statistics.data.gov.uk/id/local-authority/30UE,Unapportionable Central OHeads,1009,Policy & Governance,HR Approved Occ Health Fees,15201,Indirect Employee Expenses,5002,Occupational Health Charges for November 2020,22/01/2021,0151716,475.75,Revenue,People Asset Management Limited,76487,,
Chorley Borough Council,http://statistics.data.gov.uk/id/local-authority/30UE,Central Support Services,1009,Commercial Services,Professional Fees,40063,Services,5027,Extension to professional services,06/01/2021,0151649,"5,852.80",Revenue,Perfect Circle JV Ltd,76438,,
Chorley Borough Council,http://statistics.data.gov.uk/id/local-authority/30UE,Capital,Capital,Policy & Governance,Main Contractor,03007,Capital Expenditure,Capital,Astley Hall shop development graphics as per quote no 3102.,15/01/2021,0152190,"7,273.00",Capital,PNG Digital LTD,80969,,
Chorley Borough Council,http://statistics.data.gov.uk/id/local-authority/30UE,Capital,Capital,Commercial Services,Main Contractor,03007,Capital Expenditure,Capital,"Supply of ChloriDES controller spares, including: -Counter electrode for measuring cell, stainless steel (MP) -Chlorine electrode,",13/01/2021,0152207,484.58,Capital,Pool Technical Services Ltd,81000,,
Chorley Borough Council,http://statistics.data.gov.uk/id/local-authority/30UE,Capital,Capital,Commercial Services,Main Contractor,03007,Capital Expenditure,Capital,"Supply of service spares dosing, including: -Silicone sleeve (PAC) -Flapper valve, Hypalon (Cl)",13/01/2021,0152207,9.86,Capital,Pool Technical Services Ltd,81000,,
Chorley Borough Council,http://statistics.data.gov.uk/id/local-authority/30UE,Capital,Capital,Commercial Services,Main Contractor,03007,Capital Expenditure,Capital,"Supply of service spares for acid dosing, including: -CO2 regulator (CO2 man.c/o valve-2 hose assy.) Q1070b Fitted during service",13/01/2021,0152207,395.00,Capital,Pool Technical Services Ltd,81000,,
Chorley Borough Council,http://statistics.data.gov.uk/id/local-authority/30UE,Democratic Represent and  Mgnt,1007,Commercial Services,General Repairs - Reactive,20004,Repairs Maintenance & Alts,5005,"All Seasons Callout (Urgent, Contract) Re: leak on Main Pool sample line -8`` saddle clamp -end cap -threaded bung",20/01/2021,0152324,593.84,Revenue,Pool Technical Services Ltd,81000,,
Chorley Borough Council,http://statistics.data.gov.uk/id/local-authority/30UE,Recreation & Sport,1037,Commercial Services,General Repairs - Reactive,20004,Repairs Maintenance & Alts,5005,All Seasons Approved by NAME REDACTED Supply of works to repair 8`` pipework and acid tank top-up with parts including:,20/01/2021,0152325,"1,282.08",Revenue,Pool Technical Services Ltd,81000,,
Chorley Borough Council,http://statistics.data.gov.uk/id/local-authority/30UE,Recreation & Sport,1037,Commercial Services,Planned Maintenance,20006,Repairs Maintenance & Alts,5005,Brinscall Baths Service Contract agreement (1/12/20 - 30/11/21) 1-Pool Facility (Bi-annual services) Year 1: 1/12/20 - 30/11/21,20/01/2021,0152326,730.00,Revenue,Pool Technical Services Ltd,81000,,
Chorley Borough Council,http://statistics.data.gov.uk/id/local-authority/30UE,Recreation & Sport,1037,Commercial Services,Planned Maintenance,20006,Repairs Maintenance & Alts,5005,All Seasons Service Contract agreement (1/12/20 - 30/11/21) 2-Pool Facility (Bi-annual services) Year 1: 1/12/20 - 30/11/21,20/01/2021,0152422,850.00,Revenue,Pool Technical Services Ltd,81000,,
Chorley Borough Council,http://statistics.data.gov.uk/id/local-authority/30UE,Capital,Capital,Early Intervention,Grants,03002,Capital Expenditure,Capital,Provision of Handyperson service funded by DFG for Q4 2020-21 (1/1/21 to 31/3/21),27/01/2021,0152578,"7,405.75",Capital,Preston Care and Repair,50018,,
Chorley Borough Council,http://statistics.data.gov.uk/id/local-authority/30UE,Elections,1012,Policy & Governance,Postages,40082,Communication and Computing,5028,PI  Refresh mailings 2021 - first run,15/01/2021,0152105,"1,038.11",Revenue,Print Image Facilities LLP,57870,,
Chorley Borough Council,http://statistics.data.gov.uk/id/local-authority/30UE,Other Short Term Creditors,,Policy & Governance,General Balances,00100,Balance Sheet,Balance,des from salary,22/01/2021,0152604,"4,674.00",Revenue,PRUDENTIAL,18178,,
Chorley Borough Council,http://statistics.data.gov.uk/id/local-authority/30UE,Recreation & Sport,1037,Early Intervention,Miscellaneous Expenses,40200,Miscellaneous Expenses,5034,"December School Transport 2 Brinscall Baths - 8th, 15th 7 Chorley Baths - 2nd (2), 7th, 9th, 14th, 16th (2).",27/01/2021,0152255,360.00,Revenue,R S Tyrer Ltd,16255,,
Chorley Borough Council,http://statistics.data.gov.uk/id/local-authority/30UE,Capital,Capital,Commercial Services,Main Contractor,03007,Capital Expenditure,Capital,Construction of Whittle GP surgery,29/01/2021,0152515,"194,811.45",Capital,Rayner Rowen Construction Limited,80915,,
Chorley Borough Council,http://statistics.data.gov.uk/id/local-authority/30UE,Central Support Services,1009,Early Intervention,Professional Fees,40063,Services,5027,Access to Regulatory Information and Management Systems,20/01/2021,0152357,"3,570.00",Revenue,RH Environmental Ltd,64885,,
Chorley Borough Council,http://statistics.data.gov.uk/id/local-authority/30UE,Capital,Capital,Early Intervention,Main Contractor,03007,Capital Expenditure,Capital,Project Management salary costs for the delivery of River Lostock and Carr Brook Enhancement Project - WEG 193-2018-4483.,06/01/2021,0151941,"2,050.92",Capital,Ribble Catchment Conservation Trust Ltd,78525,,
Chorley Borough Council,http://statistics.data.gov.uk/id/local-authority/30UE,Central Support Services,1009,Commercial Services,Consultants` Fees,40077,Services,5027,Provision of Project Management & Quantity Surveying Services on the Tatton Regeneration scheme from Contractor appointment,06/01/2021,0151938,"10,102.50",Revenue,Rider Levett Bucknall,67527,,
Chorley Borough Council,http://statistics.data.gov.uk/id/local-authority/30UE,Central Support Services,1009,Commercial Services,Professional Fees,40063,Services,5027,Rightmove advertising for 12 months - 7-18 properties band 6 months at 235pm 6 months at 570pm,13/01/2021,0152200,560.81,Revenue,Rightmove Group Ltd,77717,,
Chorley Borough Council,http://statistics.data.gov.uk/id/local-authority/30UE,Central Support Services,1009,Commercial Services,Professional Fees,40063,Services,5027,Rightmove advertising for 12 months - 7-18 properties band 6 months at 235pm 6 months at 570pm,22/01/2021,0152628,285.00,Revenue,Rightmove Group Ltd,77717,,
Chorley Borough Council,http://statistics.data.gov.uk/id/local-authority/30UE,Economic Development,1096,Commercial Services,Professional Fees,40063,Services,5027,Painting works at Chorley Covered Market as per prices on the ITQ document as part of the Covered Market Improvement works,13/01/2021,0152044,"5,077.73",Revenue,RJ Clarke Painting Contractor Limited,80959,,
Chorley Borough Council,http://statistics.data.gov.uk/id/local-authority/30UE,Economic Development,1096,Commercial Services,Professional Fees,40063,Services,5027,internal roof soffits & roof trusses,13/01/2021,0152044,"9,678.14",Revenue,RJ Clarke Painting Contractor Limited,80959,,
Chorley Borough Council,http://statistics.data.gov.uk/id/local-authority/30UE,Economic Development,1096,Commercial Services,Professional Fees,40063,Services,5027,Access hire,13/01/2021,0152044,979.90,Revenue,RJ Clarke Painting Contractor Limited,80959,,
Chorley Borough Council,http://statistics.data.gov.uk/id/local-authority/30UE,Economic Development,1096,Commercial Services,Professional Fees,40063,Services,5027,Variations,13/01/2021,0152044,734.00,Revenue,RJ Clarke Painting Contractor Limited,80959,,
Chorley Borough Council,http://statistics.data.gov.uk/id/local-authority/30UE,Capital,Capital,Commercial Services,Main Contractor,03007,Capital Expenditure,Capital,Delivery of the Tatton regeneration scheme All in accordance with the executed NEC Engineering & Construct Contract,22/01/2021,0152499,"53,255.33",Capital,Robertson CE Limited,81176,,
Chorley Borough Council,http://statistics.data.gov.uk/id/local-authority/30UE,Unapportionable Central OHeads,1009,Customer & Digital,Postages,40082,Communication and Computing,5028,Anite redirection (PO BOX 13),15/01/2021,0152359,"2,910.00",Revenue,Royal Mail Group Plc,17522,,
Chorley Borough Council,http://statistics.data.gov.uk/id/local-authority/30UE,Development Control,1091,Customer & Digital,Consultants` Fees,40077,Services,5027,"Consultation on Planning App: 20/01280/FUL	Land 100m East of Wheelton House, Brinscall, Mill Road, Wheelton",22/01/2021,0152550,450.00,Revenue,RSK ADAS Ltd (GBP),78447,,
Chorley Borough Council,http://statistics.data.gov.uk/id/local-authority/30UE,Development Control,1091,Customer & Digital,Consultants` Fees,40077,Services,5027,"Consultation on Planning App: 20/00954/OUT	Roecroft Farm, Ulnes Walton Lane, Leyland",22/01/2021,0152551,495.00,Revenue,RSK ADAS Ltd (GBP),78447,,
Chorley Borough Council,http://statistics.data.gov.uk/id/local-authority/30UE,Central Support Services,1009,Early Intervention,Core Funding Grants,40133,Grants and Subscriptions,5031,Small community grant funding,15/01/2021,0152224,340.00,Revenue,Run Fit Chorley,78272,,
Chorley Borough Council,http://statistics.data.gov.uk/id/local-authority/30UE,Unapportionable Central OHeads,1009,Policy & Governance,HR Approved Occ Health Fees,15201,Indirect Employee Expenses,5002,Counselling sessions for staff in November 2020,06/01/2021,0151807,315.00,Revenue,Sarah Walsh,78412,,
Chorley Borough Council,http://statistics.data.gov.uk/id/local-authority/30UE,Central Support Services,1009,Policy & Governance,HR Approved Occ Health Fees,15201,Indirect Employee Expenses,5002,Counselling Sessions for staff in December 2020,15/01/2021,0152253,360.00,Revenue,Sarah Walsh,78412,,
Chorley Borough Council,http://statistics.data.gov.uk/id/local-authority/30UE,Service Management & Support,1009,Customer & Digital,Hire of Plant,40001,"Equipment, Furniture & Materia",5023,One week hire of a mini digger. Used a Cemeteries,27/01/2021,0151806,300.00,Revenue,Scambler Plant Hire Ltd,16710,,
Chorley Borough Council,http://statistics.data.gov.uk/id/local-authority/30UE,Unapportionable Central OHeads,1009,Commercial Services,General Repairs - Reactive,20004,Repairs Maintenance & Alts,5005,Reactive Blanket,20/01/2021,0152449,350.00,Revenue,Schindler Ltd,78215,,
Chorley Borough Council,http://statistics.data.gov.uk/id/local-authority/30UE,Homelessness,1075,Commercial Services,External Contractor,40198,Miscellaneous Expenses,5034,In respect of Concierge services for the period 01/04/2020 - 31/03/2021,06/01/2021,0151326,"6,690.35",Revenue,Sector Security Services,19269,,
Chorley Borough Council,http://statistics.data.gov.uk/id/local-authority/30UE,Business Support,1095,Commercial Services,External Contractor,40198,Miscellaneous Expenses,5034,In respect of concierge services for PRIMROSE GARDENS for period  01/04/2020 to 31/03/2020,06/01/2021,0151327,"6,508.13",Revenue,Sector Security Services,19269,,
Chorley Borough Council,http://statistics.data.gov.uk/id/local-authority/30UE,Business Support,1095,Commercial Services,External Contractor,40198,Miscellaneous Expenses,5034,In respect of concierge services for PRIMROSE GARDENS for period  01/04/2020 to 31/03/2020,27/01/2021,0152593,"7,147.37",Revenue,Sector Security Services,19269,,
Chorley Borough Council,http://statistics.data.gov.uk/id/local-authority/30UE,Homelessness,1075,Commercial Services,External Contractor,40198,Miscellaneous Expenses,5034,In respect of Concierge services for the period 01/04/2020 - 31/03/2021,27/01/2021,0152594,"7,231.25",Revenue,Sector Security Services,19269,,
Chorley Borough Council,http://statistics.data.gov.uk/id/local-authority/30UE,Central Support Services,1009,Early Intervention,Core Funding Grants,40133,Grants and Subscriptions,5031,Small community grant funding,15/01/2021,0152228,250.00,Revenue,Shooting Stars Fan Club,78287,,
Chorley Borough Council,http://statistics.data.gov.uk/id/local-authority/30UE,Planning Policy,1092,Early Intervention,Professional Fees,40063,Services,5027,NAME REDACTED Judicial Review - drafting grounds & reviewing witness statements 11.08.20,15/01/2021,0152011,"2,000.00",Revenue,Simon Pickles,77744,,
Chorley Borough Council,http://statistics.data.gov.uk/id/local-authority/30UE,Planning Policy,1092,Early Intervention,Professional Fees,40063,Services,5027,Written advice following the Pear Tree Lane appeal decision and the options to challenge 18.08.20,15/01/2021,0152027,"2,400.00",Revenue,Simon Pickles,77744,,
Chorley Borough Council,http://statistics.data.gov.uk/id/local-authority/30UE,Service Management & Support,1009,Customer & Digital,Fixtures & Fittings - Repair/Mtnce,20028,Fixtures and Fittings,5010,"To re-weld the mesh on the double entrance gates, Bengal St",27/01/2021,0152705,320.00,Revenue,SM Sheet Metal Ltd,21243,,
Chorley Borough Council,http://statistics.data.gov.uk/id/local-authority/30UE,Economic Development,1096,Commercial Services,Uniforms,40039,"Clothing, Uniforms and Laundry",5025,"13 x black trousers 21.50 each CBC51 4x34waist short leg, 2x34waist long, 2x38waist regular, 3x32waist regular",15/01/2021,0152249,291.10,Revenue,Smart Image Workwear,21064,,
Chorley Borough Council,http://statistics.data.gov.uk/id/local-authority/30UE,Central Support Services,1009,Commercial Services,Service Fees to other Local Authorities,40076,Services,5027,NAME REDACTED fees for shared services in early-mid 2020,27/01/2021,0152580,"14,099.75",Revenue,South Ribble Borough Council,17889,,
Chorley Borough Council,http://statistics.data.gov.uk/id/local-authority/30UE,Business Support,1095,Commercial Services,Window Cleaning,20034,Cleaning and Domestic Supplies,5012,PRIMROSE GARDENS Window cleaning services for Period 01/04/2020 - 31/03/2021 Please note new PO number to be added ,08/01/2021,0152074,477.95,Revenue,Sparkle Window Cleaning (Michael Jennings),77989,,
Chorley Borough Council,http://statistics.data.gov.uk/id/local-authority/30UE,Central Support Services,1009,Early Intervention,Miscellaneous Expenses,40200,Miscellaneous Expenses,5034,Time Credits,06/01/2021,0149840,"23,169.00",Revenue,Spice Innovations Ltd T/A Tempo Time Credits,61318,,
Chorley Borough Council,http://statistics.data.gov.uk/id/local-authority/30UE,Central Support Services,1009,Commercial Services,Miscellaneous Expenses,40200,Miscellaneous Expenses,5034,Time Credits,06/01/2021,0151131,"23,169.00",Revenue,Spice Innovations Ltd T/A Tempo Time Credits,61318,,
Chorley Borough Council,http://statistics.data.gov.uk/id/local-authority/30UE,Central Support Services,1009,Commercial Services,Miscellaneous Expenses,40200,Miscellaneous Expenses,5034,Time credits contract renewal (01.04.20 - 31.03.2021),06/01/2021,0151523,"17,376.75",Revenue,Spice Innovations Ltd T/A Tempo Time Credits,61318,,
Chorley Borough Council,http://statistics.data.gov.uk/id/local-authority/30UE,Central Support Services,1009,Commercial Services,Miscellaneous Expenses,40200,Miscellaneous Expenses,5034,Time credits contract renewal (01.04.20 - 31.03.2021),29/01/2021,0152717,"5,792.25",Revenue,Spice Innovations Ltd T/A Tempo Time Credits,61318,,
Chorley Borough Council,http://statistics.data.gov.uk/id/local-authority/30UE,Control Accounts,Control,Policy & Governance,General Balances,00100,Balance Sheet,Balance,Monthly Deds,22/01/2021,0152605,429.66,Revenue,St Catherines Hospice Promotions,72375,,
Chorley Borough Council,http://statistics.data.gov.uk/id/local-authority/30UE,Central Support Services,1009,Early Intervention,Miscellaneous Expenses,40200,Miscellaneous Expenses,5034,Neighbourhood working,20/01/2021,0152101,500.00,Revenue,St Gregory`s Catholic Primary School,21368,,
Chorley Borough Council,http://statistics.data.gov.uk/id/local-authority/30UE,Business Support,1095,Commercial Services,Window Cleaning,20034,Cleaning and Domestic Supplies,5012,12 monthly visits for pest control at Strawberry  fields,13/01/2021,0152168,360.00,Revenue,Standish Property Maintenance & Pest Control,78452,,
Chorley Borough Council,http://statistics.data.gov.uk/id/local-authority/30UE,Capital,Capital,Early Intervention,Consultants Fees,03025,Capital Expenditure,Capital,"Westway Pavilion Contract - Implementation Stage from Contract Let through to Practical Completion and Handover, and then ",06/01/2021,0151349,"6,503.30",Capital,Steve Wells Associates Ltd,77157,,
Chorley Borough Council,http://statistics.data.gov.uk/id/local-authority/30UE,Central Support Services,1009,Commercial Services,Professional Fees,40063,Services,5027,Building Consultancy � M&E Design & Consultancy,15/01/2021,0151623,"1,214.69",Revenue,Steven A Hunt & Associates Ltd,80511,,
Chorley Borough Council,http://statistics.data.gov.uk/id/local-authority/30UE,Central Support Services,1009,Commercial Services,Professional Fees,40063,Services,5027,Building Consultancy � M&E Design & Consultancy,15/01/2021,0152154,"1,214.70",Revenue,Steven A Hunt & Associates Ltd,80511,,
Chorley Borough Council,http://statistics.data.gov.uk/id/local-authority/30UE,Democratic Represent and  Mgnt,1007,Early Intervention,Legal Fees,40171,Miscellaneous Expenses,5034,Advice relating to NAME REDACTED 14/08/20,15/01/2021,0152029,"1,000.00",Revenue,Steven Flynn,80486,,
Chorley Borough Council,http://statistics.data.gov.uk/id/local-authority/30UE,Parking Services,1066,Commercial Services,Consultants` Fees,40077,Services,5027,additional costs,06/01/2021,0152012,"3,277.26",Revenue,Street Civil Engineering Limited,76750,,
Chorley Borough Council,http://statistics.data.gov.uk/id/local-authority/30UE,Capital,Capital,Early Intervention,Grants,03002,Capital Expenditure,Capital,20/00168/cag,13/01/2021,0152234,"4,716.50",Capital,Stringfellow Bldg Cntrctrs Ltd,17893,,
Chorley Borough Council,http://statistics.data.gov.uk/id/local-authority/30UE,Capital,Capital,Early Intervention,Grants,03002,Capital Expenditure,Capital,20/00048/cag,13/01/2021,0152235,"4,697.00",Capital,Stringfellow Bldg Cntrctrs Ltd,17893,,
Chorley Borough Council,http://statistics.data.gov.uk/id/local-authority/30UE,Capital,Capital,Early Intervention,Grants,03002,Capital Expenditure,Capital,20/00096/dfg,13/01/2021,0152236,"5,018.50",Capital,Stringfellow Bldg Cntrctrs Ltd,17893,,
Chorley Borough Council,http://statistics.data.gov.uk/id/local-authority/30UE,Central Support Services,1009,Commercial Services,Asset Maintenance Fund,20012,Repairs Maintenance & Alts,5005,Re-roofing works at ADDRESS REDACTED as agreed with NAME REDACTED by quotation,20/01/2021,0152516,"7,260.00",Revenue,Stringfellow Bldg Cntrctrs Ltd,17893,,
Chorley Borough Council,http://statistics.data.gov.uk/id/local-authority/30UE,Business Support,1095,Commercial Services,Security Service,40062,Services,5027,Security cover at DOP for December 2020,13/01/2021,0152205,"7,401.53",Revenue,The ExcluSec Group Ltd,78056,,
Chorley Borough Council,http://statistics.data.gov.uk/id/local-authority/30UE,Capital,Capital,Commercial Services,Main Contractor,03007,Capital Expenditure,Capital,"Clayton Green - manufacture, supply and install shutter as per quote to NAME REDACTED, approved by NAME REDACTED",13/01/2021,0152201,"1,637.00",Capital,The Guardian Shutter Co LTD,21769,,
Chorley Borough Council,http://statistics.data.gov.uk/id/local-authority/30UE,Central Support Services,1009,Commercial Services,General Repairs - Reactive,20004,Repairs Maintenance & Alts,5005,Reactive blanket,20/01/2021,0152347,726.00,Revenue,The Guardian Shutter Co LTD,21769,,
Chorley Borough Council,http://statistics.data.gov.uk/id/local-authority/30UE,Unapportionable Central OHeads,1009,Commercial Services,Planned Maintenance,20006,Repairs Maintenance & Alts,5005,Reactive ppm,20/01/2021,0152405,350.00,Revenue,The Guardian Shutter Co LTD,21769,,
Chorley Borough Council,http://statistics.data.gov.uk/id/local-authority/30UE,Central Support Services,1009,Commercial Services,Planned Maintenance,20006,Repairs Maintenance & Alts,5005,Reactive ppm,20/01/2021,0152406,280.00,Revenue,The Guardian Shutter Co LTD,21769,,
Chorley Borough Council,http://statistics.data.gov.uk/id/local-authority/30UE,Unapportionable Central OHeads,1009,Commercial Services,General Repairs - Reactive,20004,Repairs Maintenance & Alts,5005,Reactive blanket,20/01/2021,0152407,265.00,Revenue,The Guardian Shutter Co LTD,21769,,
Chorley Borough Council,http://statistics.data.gov.uk/id/local-authority/30UE,Service Management & Support,1009,Customer & Digital,Supplies-Grounds Maintenance,40025,"Equipment, Furniture & Materia",5023,Quantity x 30 LP1137=37� Litter picker Pro @13.18 each,27/01/2021,0152378,395.40,Revenue,The Helping Hand Company,17779,,
Chorley Borough Council,http://statistics.data.gov.uk/id/local-authority/30UE,Central Support Services,1009,Customer & Digital,Consultants` Fees,40077,Services,5027,"Best Practise Review Scope of Works; - Firewall policy rule set review, - Alignment of best practises for LAN & DC segregation",06/01/2021,0151977,"1,950.00",Revenue,The Networking People (NorthWest) Ltd T/a TNP Ltd,73446,,
Chorley Borough Council,http://statistics.data.gov.uk/id/local-authority/30UE,Unapportionable Central OHeads,1009,Policy & Governance,Publications,40054,"Printing, Stationery & General",5026,Annual Subscription Westlaw UK Services  01.01.21 - 31.12.21 Practical UK Services,15/01/2021,0152191,"13,233.35",Revenue,Thomson Reuters RE;Sweet & Maxwell Limited,17932,,
Chorley Borough Council,http://statistics.data.gov.uk/id/local-authority/30UE,Capital,Capital,Commercial Services,Main Contractor,03007,Capital Expenditure,Capital,Quantity surveying for Astley Hall Refurbishment project,20/01/2021,0152452,"1,000.00",Capital,Thornber and Walker Ltd,80557,,
Chorley Borough Council,http://statistics.data.gov.uk/id/local-authority/30UE,Capital,Capital,Policy & Governance,Other Contractor,03012,Capital Expenditure,Capital,Wooden Cup & Ball; code - 220054; qty - 3; total - 129.60 Mini Flower Press; code - 222025; qty - 2; total - 67.20 Dragon Kite; ,20/01/2021,0152311,538.00,Capital,Town Mills Craft Centre t/a House of Marbles,80858,,
Chorley Borough Council,http://statistics.data.gov.uk/id/local-authority/30UE,Capital,Capital,Policy & Governance,Other Contractor,03012,Capital Expenditure,Capital,zero rated items,20/01/2021,0152311,236.86,Capital,Town Mills Craft Centre t/a House of Marbles,80858,,
Chorley Borough Council,http://statistics.data.gov.uk/id/local-authority/30UE,Central Support Services,1009,Commercial Services,Professional Fees,40063,Services,5027,Business case on Tatton,06/01/2021,0151104,"7,500.00",Revenue,Trebbi Continuum,77723,,
Chorley Borough Council,http://statistics.data.gov.uk/id/local-authority/30UE,Economic Development,1096,Commercial Services,Miscellaneous Expenses,40200,Miscellaneous Expenses,5034,To provide FHSF Planning Application for Chorley Civic Square - as per consultation fee schedule: August 2020 - 53945.00 Buzz ,20/01/2021,0152377,"1,527.00",Revenue,Trebbi Continuum,77723,,
Chorley Borough Council,http://statistics.data.gov.uk/id/local-authority/30UE,Service Management & Support,1009,Customer & Digital,Grounds Maintenance Contractor,20043,Grounds Maintenance Costs,5013,Mature Ash on Lucas Lane. Heavy reduction.,27/01/2021,0152443,"1,390.00",Revenue,Tree Care Company (Yorkshire) Ltd,77553,,
Chorley Borough Council,http://statistics.data.gov.uk/id/local-authority/30UE,Service Management & Support,1009,Customer & Digital,Grounds Maintenance Contractor,20043,Grounds Maintenance Costs,5013,"Reduction of mature Beech in Astley Park, near Rectory Close.",13/01/2021,0152022,820.00,Revenue,Treescape North West Ltd,17688,,
Chorley Borough Council,http://statistics.data.gov.uk/id/local-authority/30UE,Service Management & Support,1009,Customer & Digital,Grounds Maintenance Contractor,20043,Grounds Maintenance Costs,5013,"Removal of fallen mature Beech away from River Chor, near Ackhurst Lodge.",13/01/2021,0152045,"1,640.00",Revenue,Treescape North West Ltd,17688,,
Chorley Borough Council,http://statistics.data.gov.uk/id/local-authority/30UE,Service Management & Support,1009,Customer & Digital,Grounds Maintenance Contractor,20043,Grounds Maintenance Costs,5013,"Poplar at Fairview, close to railway line.",27/01/2021,0152629,820.00,Revenue,Treescape North West Ltd,17688,,
Chorley Borough Council,http://statistics.data.gov.uk/id/local-authority/30UE,Central Support Services,1009,Policy & Governance,Miscellaneous Expenses,40200,Miscellaneous Expenses,5034,healthcare,22/01/2021,0152460,"1,591.33",Revenue,UK Healthcare (BDHSC),17241,,
Chorley Borough Council,http://statistics.data.gov.uk/id/local-authority/30UE,Central Support Services,1009,Customer & Digital,Service Fees,40056,Services,5027,Daily Hybrid Mail & Annual Billing,27/01/2021,0152159,352.34,Revenue,UKMAIL Ltd (Mail),57758,,
Chorley Borough Council,http://statistics.data.gov.uk/id/local-authority/30UE,Unapportionable Central OHeads,1009,Customer & Digital,Service Fees,40056,Services,5027,Daily Hybrid Mail & Annual Billing,27/01/2021,0152165,328.69,Revenue,UKMAIL Ltd (Mail),57758,,
Chorley Borough Council,http://statistics.data.gov.uk/id/local-authority/30UE,Control Accounts,Control,Policy & Governance,General Balances,00100,Balance Sheet,Balance,Monthly Deductions from Payroll,20/01/2021,0152535,"1,793.70",Revenue,Unify Credit Union Ltd,55509,,
Chorley Borough Council,http://statistics.data.gov.uk/id/local-authority/30UE,Capital,Capital,Early Intervention,Grants,03002,Capital Expenditure,Capital,ADDRESS REDACTED,13/01/2021,0152070,"4,780.55",Capital,UPS Building and Maintenance Ltd,76235,,
Chorley Borough Council,http://statistics.data.gov.uk/id/local-authority/30UE,Capital,Capital,Early Intervention,Grants,03002,Capital Expenditure,Capital,20/00165/cag ADDRESS REDACTED,13/01/2021,0152231,"4,223.75",Capital,UPS Building and Maintenance Ltd,76235,,
Chorley Borough Council,http://statistics.data.gov.uk/id/local-authority/30UE,Unapportionable Central OHeads,1009,Policy & Governance,Professional Fees,40063,Services,5027,Yields Exercise regarding Logistics House. For the attention of NAME REDACTED,22/01/2021,0151666,500.00,Revenue,Valuation Office Agency,17561,,
Chorley Borough Council,http://statistics.data.gov.uk/id/local-authority/30UE,Central Support Services,1009,Customer & Digital,Computer Equipment - Security,40106,Communication and Computing,5028,01 Jan 21,20/01/2021,0152345,"2,086.52",Revenue,Vodafone Ltd,60180,,
Chorley Borough Council,http://statistics.data.gov.uk/id/local-authority/30UE,Central Support Services,1009,Policy & Governance,Car Leasing Payment,14100,Direct Employee Expenses,5001,VIN REDACTED NAME REDACTED,20/01/2021,0152302,"1,417.21",Revenue,VWFS UK Ltd T/A Volkswagen Group Leasing,56010,,
Chorley Borough Council,http://statistics.data.gov.uk/id/local-authority/30UE,Central Support Services,1009,Commercial Services,Consultants` Fees,40077,Services,5027,Procurement Management (Alker Lane),13/01/2021,0152313,"3,250.00",Revenue,Walker Sime Limited,80921,,
Chorley Borough Council,http://statistics.data.gov.uk/id/local-authority/30UE,Service Management & Support,1009,Customer & Digital,Supplies-Grounds Maintenance,40025,"Equipment, Furniture & Materia",5023,Supply Spring bedding & wildflower bulbs. Deliver to Bengal St depot,13/01/2021,0152057,"7,805.61",Revenue,Walkers Nurseries Chester Ltd,81322,,
Chorley Borough Council,http://statistics.data.gov.uk/id/local-authority/30UE,Service Management & Support,1009,Customer & Digital,Supplies-Grounds Maintenance,40025,"Equipment, Furniture & Materia",5023,Supply Summer Bedding. Deliver to Bengal St Depot,13/01/2021,0152058,"4,056.02",Revenue,Walkers Nurseries Chester Ltd,81322,,
Chorley Borough Council,http://statistics.data.gov.uk/id/local-authority/30UE,Capital,Capital,Early Intervention,Main Contractor,03007,Capital Expenditure,Capital,Construction of new sports pavilion and changing facility at Westway Playing Fields,27/01/2021,0152078,"126,295.31",Capital,Walter Carefoot Construction (Ltd),80601,,
Chorley Borough Council,http://statistics.data.gov.uk/id/local-authority/30UE,Central Support Services,1009,Commercial Services,Water - Metered Supplies,20022,Water Services,5009,30/8/20 to 19/12/20,20/01/2021,0152344,"2,156.40",Revenue,Water-plus,17926,,
Chorley Borough Council,http://statistics.data.gov.uk/id/local-authority/30UE,Business Support,1095,Commercial Services,Water - Metered Supplies,20022,Water Services,5009,21/6/20 to 17/9/20,27/01/2021,0152635,325.36,Revenue,Water-plus,17926,,
Chorley Borough Council,http://statistics.data.gov.uk/id/local-authority/30UE,Corporate Management,1008,Policy & Governance,Miscellaneous Expenses,40200,Miscellaneous Expenses,5034,Accessibility audit of the Council website as per Scope of Works High level review of 8 additional sites,27/01/2021,0152517,"3,750.00",Revenue,Web Usability,81320,,
Chorley Borough Council,http://statistics.data.gov.uk/id/local-authority/30UE,Service Management & Support,1009,Customer & Digital,Grounds Maintenance Contractor,20043,Grounds Maintenance Costs,5013,Reduction of mature multi stemmed Sycamore in Astley Park.,27/01/2021,0152538,795.00,Revenue,Westfield Tree Services Ltd,17729,,
Chorley Borough Council,http://statistics.data.gov.uk/id/local-authority/30UE,Central Support Services,1009,Chief Executive,Postages,40082,Communication and Computing,5028,"Mail collections for Town Hall and Union Street, April 20 to March 21",22/01/2021,0152189,368.55,Revenue,Whistl North Limited,67256,,
Chorley Borough Council,http://statistics.data.gov.uk/id/local-authority/30UE,Central Support Services,1009,Chief Executive,Postages,40082,Communication and Computing,5028,"Mail collections for Town Hall and Union Street, April 20 to March 21",27/01/2021,0152478,498.61,Revenue,Whistl North Limited,67256,,
Chorley Borough Council,http://statistics.data.gov.uk/id/local-authority/30UE,Service Management & Support,1009,Customer & Digital,Supplies-Grounds Maintenance,40025,"Equipment, Furniture & Materia",5023,8 x N keyed Padlocks 15 x H keyed Padlocks,27/01/2021,0152470,260.65,Revenue,Wilcock & Sons,18008,,
Chorley Borough Council,http://statistics.data.gov.uk/id/local-authority/30UE,Central Support Services,1009,Customer & Digital,Other Fees,40212,Miscellaneous Expenses,5034,Xeretec - printing,27/01/2021,0152634,428.18,Revenue,Xeretec Document Solutions,20052,,
